{"text_format":"1","workbook":"xlsx","n_sheets":13,"sheets":["Schedule","2023_Trains","Membership Schedule","Master ","Sheet2","02-01","Blank Sheet","list2","DATA_Lists","Revisions","Old 2023_Trains","Duplicate Master","Old Master"],"not_rendered":{"charts":0,"images":1,"macros":1,"external_links":1,"defined_names":4,"comments":0,"pivot_tables":0},"unopened":[],"bounds":{"document_bytes":16777216,"sheet_cells":100000,"rows_first":2000,"rows_last":500,"rows_between":2000,"halvings":0,"cell_chars":16384,"cell_head_chars":4096},"cells_cut":0,"cells_raw":0,"read":"whole","date_system":"1900"}

{"sheet":"Schedule","index":0,"n_rows":57,"n_cols":11,"rows_kept":57,"cut":false,"hidden":false,"merged":[]}
[]
[null," ","                               2023 Schedule"]
[null,null,null,null,null,null,null,null,null,"Total Ridership YTD",{"$f":"TODAY()","v":"2023-03-19"}]
[]
[null,"Index","Date",null," Trains",1,2,3,4,5,"Theme "]
[]
[]
[null,1,"2023-02-01",{"$f":"IF(C8=0,\" \",TEXT(C8,\"ddd\"))","v":"Wed"},1,"10:30",null,null,null,null,"Photo shoot"]
[null,2,"2023-04-01","Sat",5,"9:30","11:00","12:30","2:00","3:30","Hop into Spring"]
[null,3,"2023-04-02","Sun",5,"9:30","11:00","12:30","2:00","3:30","Hop into Spring"]
[null,4,"2023-04-12","Wed",1,"10:30",null,null,null,null,"Group ride"]
[null,5,"2023-04-15","Sat",4,"11:00","12:00","1:00","2:00",null,"Operate-A-Loco"]
[null,6,"2023-04-21","Fri",1,"10:30",null,null,null,null,"Group ride"]
[null,7,"2023-05-06","Sat",4,"1:00","2:30","4:00","5:30",null,"Brew & Choo"]
[null,8,"2023-05-12","Fri",1,"10:30",null,null,null,null,"Group ride"]
[null,9,"2023-05-13","Sat",4,"11:00","12:00","1:00","2:00",null,"Operate-A-Loco"]
[null,10,"2023-05-17","Wed",1,"10:30",null,null,null,null,"Group ride"]
[null,11,"2023-05-20","Sat",1,"TBD",null,null,null,null,"Fuel train"]
[null,12,"2023-05-21","Sun",3,"1:00","2:30","4:00",null,null,"Slow Down Sunday"]
[null,13,"2023-05-26","Fri",1,"10:30",null,null,null,null,"Group ride"]
[null,14,"2023-06-03","Sat",4,"1:00","2:30","4:00","5:30",null,"Brew & Choo"]
[null,15,"2023-06-09","Fri",1,"10:30",null,null,null,null,"Group ride"]
[null,16,"2023-06-11","Sun",3,"1:00","2:30","4:00",null,null,"Slow Down Sunday"]
[null,17,"2023-06-14","Wed",1,"10:30",null,null,null,null,"Group ride"]
[null,18,"2023-06-17","Sat",4,"11:00","12:00","1:00","2:00",null,"Operate-A-Loco"]
[null,19,"2023-06-18","Sun",4,"11:00","12:00","1:00","2:00",null,"Operate-A-Loco"]
[null,20,"2023-06-23","Fri",1,"10:30",null,null,null,null,"Group ride"]
[null,21,"2023-07-01","Sat",4,"1:00","2:30","4:00","5:30",null,"Brew & Choo"]
[null,22,"2023-07-14",{"$f":"IF(C29=0,\" \",TEXT(C29,\"ddd\"))","v":"Fri"},1,"10:30",null,null,null,null,"Group ride"]
[null,23,"2023-07-15","Sat",4,"11:00","12:00","1:00","2:00",null,"Operate-A-Loco"]
[null,24,"2023-07-19",{"$f":"IF(C31=0,\" \",TEXT(C31,\"ddd\"))","v":"Wed"},1,"10:30",null,null,null,null,"Group ride"]
[null,25,"2023-07-23",{"$f":"IF(C32=0,\" \",TEXT(C32,\"ddd\"))","v":"Sun"},3,"1:00","2:30","4:00",null,null,"Slow Down Sunday"]
[null,26,"2023-07-28",{"$f":"IF(C33=0,\" \",TEXT(C33,\"ddd\"))","v":"Fri"},"1","10:30",null,null,null,null,"Group ride"]
[null,27,"2023-08-05","Sat",4,"1:00","2:30","4:00","5:30",null,"Brew & Choo"]
[null,28,"2023-08-11","Fri",1,"10:30",null,null,null,null,"Group ride"]
[null,29,"2023-08-16","Wed",1,"10:30",null,null,null,null,"Group ride"]
[null,30,"2023-08-19","Sat",4,"11:00","12:00","1:00","2:00",null,"Operate-A-Loco"]
[null,31,"2023-08-25","Fri",1,"10:30",null,null,null,null,"Group ride"]
[null,32,"2023-09-08","Fri",1,"10:30",null,null,null,null,"Group ride"]
[null,33,"2023-09-09","Sat",4,"1:00","2:30","4:00","5:30",null,"Brew & Choo"]
[null,34,"2023-09-13","Wed",1,"10:30",null,null,null,null,"Group ride"]
[null,35,"2023-09-16","Sat",4,"11:00","12:00","1:00","2:00",null,"Operate-A-Loco"]
[null,36,"2023-09-17","Sun",3,"1:00","2:30","4:00",null,null,"Slow Down Sunday"]
[null,37,"2023-09-22","Fri",1,"10:30",null,null,null,null,"Group ride"]
[null,38,"2023-10-14","Sat",5,"2:15","3:30","4:45","6:30","7:45","Trick/Treat Halloween"]
[null,39,"2023-10-21","Sat",5,"2:15","3:30","4:45","6:30","7:45","Trick/Treat Halloween"]
[null,40,"2023-10-27","Fri",3,"5:00","6:30","7:45",null,null,"Trick/Treat Halloween"]
[null,41,"2023-10-28","Sat",5,"2:15","3:30","4:45","6:30","7:45","Trick/Treat Halloween"]
[null,42,"2023-11-08","Wed",1,"10:30",null,null,null,null,"Group ride"]
[null,43,"2023-11-11","Sat",4,"11:30","1:00","2:30","4:00",null,"Brew & Choo"]
[null,44,"2023-11-12","Sun",4,"11:00","12:00","1:00","2:00",null,"Operate-A-Loco"]
[null,45,"2023-11-17","Fri",1,"10:30",null,null,null,null,"Group ride"]
[null,46,"2023-12-02","Sat",5,"9:30","11:00","12:30","2:00","3:30","Santa Trains"]
[null,47,"2023-12-03","Sun",5,"9:30","11:00","12:30","2:00","3:30","Santa Trains"]
[null,48,"2023-12-09","Sat",5,"9:30","11:00","12:30","2:00","3:30","Santa Trains"]
[null,49,"2023-12-10","Sun",5,"9:30","11:00","12:30","2:00","3:30","Santa Trains"]
[null,50,"2023-12-16","Sat",5,"9:30","11:00","12:30","2:00","3:30","Santa Trains"]

{"sheet":"2023_Trains","index":1,"n_rows":56,"n_cols":13,"rows_kept":56,"cut":false,"hidden":false,"merged":[]}
[]
[null," ","      2023 Schedule and Ridership"]
[null,null,null,null,null,null,null,null,null,"Total Ridership YTD",{"$f":"SUM(K7:K138)","v":1},null,{"$f":"TODAY()","v":"2023-03-19"}]
[]
[null,"Index","Date",null," Trains",1,2,3,4,5,"Riders","Average ","Theme "]
[]
[null,1,"2023-02-01",{"$f":"IF(C7=0,\" \",TEXT(C7,\"ddd\"))","v":"Wed"},1,"10:30 am",null,null,null,null,1,null,"Photo shoot"]
[null,2,"2023-04-01","Sat",5,"9:30 am","11:00 am","12:30 pm","2:15 pm","3:45 pm",null,null,"Hop into Spring"]
[null,3,"2023-04-02","Sun",5,"9:30 am","11:00 am","12:30 pm","2:15 pm","3:45 pm",null,null,"Hop into Spring"]
[null,4,"2023-04-12","Wed",1,"10:30 am",null,null,null,null,null,null,"Group ride"]
[null,5,"2023-04-15","Sat",4,"11:00 am","12:00  pm","1:00 pm","2:00 pm",null,null,null,"Operate-A-Loco"]
[null,6,"2023-04-21","Fri",1,"10:30 am",null,null,null,null,null,null,"Group ride"]
[null,7,"2023-05-06","Sat",4,"1:00 pm","2:30 pm","4:00 pm","5:30 pm",null,null,null,"Brew & Choo"]
[null,8,"2023-05-12","Fri",1,"10:30 am",null,null,null,null,null,null,"Group ride"]
[null,9,"2023-05-13","Sat",4,"11:00 am","12:00  pm","1:00 pm","2:00 pm",null,null,null,"Operate-A-Loco"]
[null,10,"2023-05-17","Wed",1,"1:00 pm",null,null,null,null,null,null,"Group ride"]
[null,11,"2023-05-20","Sat",1,"TBD",null,null,null,null,null,null,"Fuel train"]
[null,12,"2023-05-21","Sun",3,"1:00 am","2:30 pm","4:00 pm",null,null,null,null,"Slow Down Sunday"]
[null,13,"2023-05-26","Fri",1,"10:30 am",null,null,null,null,null,null,"Group ride"]
[null,14,"2023-06-03","Sat",4,"1:00 pm","2:30 pm","4:00 pm","5:30 pm",null,null,null,"Brew & Choo"]
[null,15,"2023-06-09","Fri",1,"10:30 am",null,null,null,null,null,null,"Group ride"]
[null,16,"2023-06-11","Sun",3,"1:00 pm","2:30 pm","4:00 pm",null,null,null,null,"Slow Down Sunday"]
[null,17,"2023-06-14","Wed",1,"10:30 am",null,null,null,null,null,null,"Group ride"]
[null,18,"2023-06-17","Sat",4,"11:00 am","12:00  pm","1:00 pm","2:00 pm",null,null,null,"Operate-A-Loco"]
[null,19,"2023-06-18","Sun",4,"11:00 am","12:00  pm","1:00 pm","2:00 pm",null,null,null,"Operate-A-Loco"]
[null,20,"2023-06-23","Fri",1,"10:30 am",null,null,null,null,null,null,"Group ride"]
[null,21,"2023-07-01","Sat",4,"1:00 pm","2:30 pm","4:00 pm","5:30 pm",null,null,null,"Brew & Choo"]
[null,22,"2023-07-14",{"$f":"IF(C28=0,\" \",TEXT(C28,\"ddd\"))","v":"Fri"},1,"10:30 am",null,null,null,null,null,null,"Group ride"]
[null,23,"2023-07-15","Sat",4,"11:00 am","12:00  pm","1:00 pm","2:00 pm",null,null,null,"Operate-A-Loco"]
[null,24,"2023-07-19",{"$f":"IF(C30=0,\" \",TEXT(C30,\"ddd\"))","v":"Wed"},1,"10:30 am",null,null,null,null,null,null,"Group ride"]
[null,25,"2023-07-23",{"$f":"IF(C31=0,\" \",TEXT(C31,\"ddd\"))","v":"Sun"},3,"1:00 pm","2:30 pm","4:00 pm",null,null,null,null,"Slow Down Sunday"]
[null,26,"2023-07-28",{"$f":"IF(C32=0,\" \",TEXT(C32,\"ddd\"))","v":"Fri"},"1","10:30 am",null,null,null,null,null,null,"Group ride"]
[null,27,"2023-08-05","Sat",4,"1:00 pm","2:30 pm","4:00 pm","5:30 pm",null,null,null,"Brew & Choo"]
[null,28,"2023-08-11","Fri",1,"10:30 am",null,null,null,null,null,null,"Group ride"]
[null,29,"2023-08-16","Wed",1,"10:30 am",null,null,null,null,null,null,"Group ride"]
[null,30,"2023-08-19","Sat",4,"11:00 am","12:00  pm","1:00 pm","2:00 pm",null,null,null,"Operate-A-Loco"]
[null,31,"2023-08-25","Fri",1,"10:30 am",null,null,null,null,null,null,"Group ride"]
[null,32,"2023-09-08","Fri",1,"10:30 am",null,null,null,null,null,null,"Group ride"]
[null,33,"2023-09-09","Sat",4,"1:00 am","2:30 pm","4:00 pm","5:30 pm",null,null,null,"Brew & Choo"]
[null,34,"2023-09-13","Wed",1,"10:30 am",null,null,null,null,null,null,"Group ride"]
[null,35,"2023-09-16","Sat",4,"11:00 am","12:00  pm","1:00 pm","2:00 pm",null,null,null,"Operate-A-Loco"]
[null,36,"2023-09-17","Sun",3,"1:00 am","2:30 pm","4:00 pm",null,null,null,null,"Slow Down Sunday"]
[null,37,"2023-09-22","Fri",1,"10:30 am",null,null,null,null,null,null,"Group ride"]
[null,38,"2023-10-14","Sat",5,"2:15 pm","3:30 pm","4:45 pm","6:30 pm","7:45 pm",null,null,"Trick/Treat Halloween"]
[null,39,"2023-10-21","Sat",5,"2:15 pm","3:30 pm","4:45 pm","6:30 pm","7:45 pm",null,null,"Trick/Treat Halloween"]
[null,40,"2023-10-27","Fri",3,"5:00 pm","6:30 pm","7:45 pm",null,null,null,null,"Trick/Treat Halloween"]
[null,41,"2023-10-28","Sat",5,"2:15 pm","3:30 pm","4:45 pm","6:30 pm","7:45 pm",null,null,"Trick/Treat Halloween"]
[null,42,"2023-11-08","Wed",1,"10:30 am",null,null,null,null,null,null,"Group ride"]
[null,43,"2023-11-11","Sat",4,"11:30 am","1:00 pm","2:30 pm","4:00 pm",null,null,null,"Brew & Choo"]
[null,44,"2023-11-12","Sun",4,"11:00 am","12:00  pm","1:00 pm","2:00 pm",null,null,null,"Operate-A-Loco"]
[null,45,"2023-11-17","Fri",1,"10:30 am",null,null,null,null,null,null,"Group ride"]
[null,46,"2023-12-02","Sat",5,"9:30 am","11:00 am","12:30 pm","2:00 pm","3:30 pm",null,null,"Santa Trains"]
[null,47,"2023-12-03","Sun",5,"9:30 am","11:00 am","12:30 pm","2:00 pm","3:30 pm",null,null,"Santa Trains"]
[null,48,"2023-12-09","Sat",5,"9:30 am","11:00 am","12:30 pm","2:00 pm","3:30 pm",null,null,"Santa Trains"]
[null,49,"2023-12-10","Sun",5,"9:30 am","11:00 am","12:30 pm","2:00 pm","3:30 pm",null,null,"Santa Trains"]
[null,50,"2023-12-16","Sat",5,"9:30 am","11:00 am","12:30 pm","2:00 pm","3:30 pm",null,null,"Santa Trains"]

{"sheet":"Membership Schedule","index":2,"n_rows":42,"n_cols":21,"rows_kept":42,"cut":false,"hidden":false,"merged":[]}
[]
[]
[]
[]
[]
[]
[null,null,null,null,null,null,null,null,null,"Membership Events Schedule 2023",null,null,null,null,null,null,null,null,"ctrl-s","ctrl-m",{"$f":"TODAY()","v":"2023-03-19"}]
[]
[1,"2023-02-01",{"$f":"IF(B9=0,\" \",TEXT(B9,\"ddd\"))","v":"Wed"},1,"10:30",null,null,null,null,"Photo shoot"]
[2,"2023-03-16","Thu",null,"06:00:00",null,null,null,null,"Board of Directors Meeting",null,37,"2023-08-05",{"$f":"IF(M10=0,\" \",TEXT(M10,\"ddd\"))","v":"Sat"},4,"1:00","2:30","4:00","5:30",null,"Brew & Choo"]
[3,"2023-03-25","Sat",null,"10:00:00",null,null,null,null,"New Member Orientation",null,38,"2023-08-11","Fri",1,"10:30",null,null,null,null,"Group ride"]
[4,"2023-03-25","Sat",null,null,null,null,null,null,"Rules and safety Training",null,39,"2023-08-16","Wed",1,"10:30",null,null,null,null,"Group ride"]
[5,"2023-04-01","Sat",5,"9:30","11:00","12:30","2:15","3:45","Hop into Spring",null,40,"2023-08-17","Thu",null,"06:00:00",null,null,null,null,"Board of Directors Meeting"]
[6,"2023-04-02","Sun",5,"9:30","11:00","12:30","2:15","3:45","Hop into Spring",null,41,"2023-08-19","Sat",4,"11:00","12:00","1:00","2:00",null,"Operate-A-Loco"]
[7,"2023-04-12","Wed",1,"10:30",null,null,null,null,"Group ride",null,42,"2023-08-25","Fri",1,"10:30",null,null,null,null,"Group ride"]
[8,"2023-04-15","Sat",4,"11:00","12:00","1:00","2:00",null,"Operate-A-Loco",null,43,"2023-09-01","Fri",null,"TBD",null,null,null,null,"New Member Orientation"]
[9,"2023-04-15","Sat",null,"10:00:00",null,null,null,null,"Membership Meeting",null,44,"2023-09-08","Fri",1,"10:30",null,null,null,null,"Group ride"]
[10,"2023-04-20","Thu",null,"06:00:00",null,null,null,null,"Board of Directors Meeting",null,45,"2023-09-09","Sat",4,"1:00","2:30","4:00","5:30",null,"Brew & Choo"]
[11,"2023-04-21","Fri",1,"10:30",null,null,null,null,"Group ride",null,46,"2023-09-13","Wed",1,"10:30",null,null,null,null,"Group ride"]
[12,"2023-05-06","Sat",4,"1:00","2:30","4:00","5:30",null,"Brew & Choo",null,47,"2023-09-16","Sat",4,"11:00","12:00","1:00","2:00",null,"Operate-A-Loco"]
[13,"2023-05-12","Fri",1,"10:30",null,null,null,null,"Group ride",null,48,"2023-09-17","Sun",3,"1:00","2:30","4:00",null,null,"Slow Down Sunday"]
[14,"2023-05-13","Sat",4,"11:00","12:00","1:00","2:00",null,"Operate-A-Loco",null,49,"2023-09-21","Thu",null,"06:00:00",null,null,null,null,"Board of Directors Meeting"]
[15,"2023-05-17","Wed",1,"10:30",null,null,null,null,"Group ride",null,50,"2023-09-22","Fri",1,"10:30",null,null,null,null,"Group ride"]
[16,"2023-05-18","Thu",null,"06:00:00",null,null,null,null,"Board of Directors Meeting",null,51,"2023-09-23","Sat",null,"09:00:00",null,null,null,null,"Rules and safety Training"]
[17,"2023-05-20","Sat",1,"TBD",null,null,null,null,"Fuel train",null,52,"2023-10-07","Sat",null,"10:00",null,null,null,null,"BOD Election/Membership"]
[18,"2023-05-21","Sun",3,"1:00","2:30","4:00",null,null,"Slow Down Sunday",null,53,"2023-10-14","Sat",5,"2:15","3:30","4:45","6:30","7:45","Trick/Treat Halloween"]
[19,"2023-05-26","Fri",1,"10:30",null,null,null,null,"Group ride",null,54,"2023-10-19","Thu",null,null,null,null,null,null,"Board of Directors Meeting"]
[20,"2023-06-01","Thu",null,"TBD",null,null,null,null,"New Member Orientation",null,55,"2023-10-21","Sat",5,"2:15","3:30","4:45","6:30","7:45","Trick/Treat Halloween"]
[21,"2023-06-03","Sat",4,"1:00","2:30","4:00","5:30",null,"Brew & Choo",null,56,"2023-10-27","Fri",3,"5:00","6:30","7:45",null,null,"Trick/Treat Halloween"]
[22,"2023-06-09","Fri",1,"10:30",null,null,null,null,"Group ride",null,57,"2023-10-28","Sat",5,"2:15","3:30","4:45","6:30","7:45","Trick/Treat Halloween"]
[23,"2023-06-11","Sun",3,"1:00","2:30","4:00",null,null,"Slow Down Sunday",null,58,"2023-11-01","Wed",null,"TBD",null,null,null,null,"New Member Orientation"]
[24,"2023-06-14","Wed",1,"10:30",null,null,null,null,"Group ride",null,59,"2023-11-08","Wed",1,"10:30",null,null,null,null,"Group ride"]
[25,"2023-06-15","Thu",null,"06:00:00",null,null,null,null,"Board of Directors Meeting",null,60,"2023-11-11","Sat",4,"11:30","1:00","2:30","4:00",null,"Brew & Choo"]
[26,"2023-06-17","Sat",4,"11:00","12:00","1:00","2:00",null,"Operate-A-Loco",null,61,"2023-11-12","Sun",4,"11:00","12:00","1:00","2:00",null,"Operate-A-Loco"]
[27,"2023-06-18","Sun",4,"11:00","12:00","1:00","2:00",null,"Operate-A-Loco",null,62,"2023-11-16","Thu",null,"06:00:00",null,null,null,null,"Board of Directors Meeting"]
[28,"2023-06-23","Fri",1,"10:30",null,null,null,null,"Group ride",null,63,"2023-11-17","Fri",1,"10:30",null,null,null,null,"Group ride"]
[29,"2023-07-01","Sat",4,"1:00","2:30","4:00","5:30",null,"Brew & Choo",null,64,"2023-11-25","Sat",null,"09:00:00",null,null,null,null,"Decorating Day/Pot Luck"]
[30,"2023-07-14","Fri",1,"10:30",null,null,null,null,"Group ride",null,65,"2023-12-02","Sat",5,"9:30","11:00","12:30","2:00","3:30","Santa Trains"]
[31,"2023-07-15","Sat",4,"11:00","12:00","1:00","2:00",null,"Operate-A-Loco",null,66,"2023-12-03","Sun",5,"9:30","11:00","12:30","2:00","3:30","Santa Trains"]
[32,"2023-07-15","Sat",null,"10:00:00",null,null,null,null,"Membership Meeting",null,67,"2023-12-09","Sat",5,"9:30","11:00","12:30","2:00","3:30","Santa Trains"]
[33,"2023-07-19","Wed",1,"10:30",null,null,null,null,"Group ride",null,68,"2023-12-10","Sun",5,"9:30","11:00","12:30","2:00","3:30","Santa Trains"]
[null,null,null,null,null,null,null,null,null,"https://dunn-itvideoservicesllc.yolasite.com/resources/NHVRY/Membership_Schedule.pdf"]

{"sheet":"Master ","index":3,"n_rows":52,"n_cols":13,"rows_kept":52,"cut":false,"hidden":false,"merged":[[0,1,0,12],[1,7,1,9]]}
[null,"New Hope Valley Railway"]
[null,"TIMETABLE 7",null,null,null,"DATE:",null,null,null,null,null,"R","Bonsal, NC"]
[]
[null,null,null,null,null,null,null,{"$f":"IF(H2=0,\" \",VLOOKUP(H2,'2023_Trains'!C8:M59,11,))","v":" "}]
[null,"PART 1: PASSENGER COUNT"]
[null,"SCHEDULED TIME",null,{"$f":"IF($H$2=0,\" \",IF(VLOOKUP($H$2,'2023_Trains'!$C$7:$M$60,4)=0,\" \",VLOOKUP($H$2,'2023_Trains'!$C$7:$M$60,4,FALSE)))","v":" "},null,{"$f":"IF($H$2=0,\" \",IF(VLOOKUP($H$2,'2023_Trains'!$C$7:$M$60,5)=0,\" \",VLOOKUP($H$2,'2023_Trains'!$C$7:$M$60,5,FALSE)))","v":" "},null,{"$f":"IF($H$2=0,\" \",IF(VLOOKUP($H$2,'2023_Trains'!$C$7:$M$60,6)=0,\" \",VLOOKUP($H$2,'2023_Trains'!$C$7:$M$60,6,FALSE)))","v":" "},null,{"$f":"IF($H$2=0,\" \",IF(VLOOKUP($H$2,'2023_Trains'!$C$7:$M$60,7)=0,\" \",VLOOKUP($H$2,'2023_Trains'!$C$7:$M$60,7,FALSE)))","v":" "},null,{"$f":"IF($H$2=0,\" \",IF(VLOOKUP($H$2,'2023_Trains'!$C$7:$M$60,8)=0,\" \",VLOOKUP($H$2,'2023_Trains'!$C$7:$M$60,8,FALSE)))","v":" "}]
[null,"TRAIN NUMBER",null,{"$f":"IF(D6=\" \",\" \",VALUE(D6))","v":" "},null,{"$f":"IF(F6=\" \",\" \",VALUE(F6))","v":" "},null,{"$f":"IF(H6=\" \",\" \",VALUE(H6))","v":" "},null," ",null," "]
[null,"ENGINE:"]
[]
[null,"MP 0.1 - Depart Northbound",null,{"$f":"IF(C10=0,\" \",TIMEVALUE(LEFT(C10,2)&\":\"&MID(C10,3,2)&\":\"&RIGHT(C10,2)))","v":" "},null," ",null,{"$f":"IF(G10=0,\" \",TIMEVALUE(LEFT(G10,2)&\":\"&MID(G10,3,2)&\":\"&RIGHT(G10,2)))","v":" "},null,{"$f":"IF(I10=0,\" \",TIMEVALUE(LEFT(I10,2)&\":\"&MID(I10,3,2)&\":\"&RIGHT(I10,2)))","v":" "},null,{"$f":"IF(K10=0,\" \",TIMEVALUE(LEFT(K10,2)&\":\"&MID(K10,3,2)&\":\"&RIGHT(K10,2)))","v":" "}]
[null,"Yard Limits*"]
[null,"MP 2.1 - Midway Northbound",null,{"$f":"IF(C12=0,\" \",TIMEVALUE(LEFT(C12,2)&\":\"&MID(C12,3,2)&\":\"&RIGHT(C12,2)))","v":" "},null,{"$f":"IF(E12=0,\" \",TIMEVALUE(LEFT(E12,2)&\":\"&MID(E12,3,2)&\":\"&RIGHT(E12,2)))","v":" "},null,{"$f":"IF(G12=0,\" \",TIMEVALUE(LEFT(G12,2)&\":\"&MID(G12,3,2)&\":\"&RIGHT(G12,2)))","v":" "},null,{"$f":"IF(I12=0,\" \",TIMEVALUE(LEFT(I12,2)&\":\"&MID(I12,3,2)&\":\"&RIGHT(I12,2)))","v":" "},null,{"$f":"IF(K12=0,\" \",TIMEVALUE(LEFT(K12,2)&\":\"&MID(K12,3,2)&\":\"&RIGHT(K12,2)))","v":" "}]
[null,"MP 4.1 - Arr.  New Hill",null,{"$f":"IF(C13=0,\" \",TIMEVALUE(LEFT(C13,2)&\":\"&MID(C13,3,2)&\":\"&RIGHT(C13,2)))","v":" "},null,{"$f":"IF(E13=0,\" \",TIMEVALUE(LEFT(E13,2)&\":\"&MID(E13,3,2)&\":\"&RIGHT(E13,2)))","v":" "},null,{"$f":"IF(G13=0,\" \",TIMEVALUE(LEFT(G13,2)&\":\"&MID(G13,3,2)&\":\"&RIGHT(G13,2)))","v":" "},null,{"$f":"IF(I13=0,\" \",TIMEVALUE(LEFT(I13,2)&\":\"&MID(I13,3,2)&\":\"&RIGHT(I13,2)))","v":" "},null,{"$f":"IF(K13=0,\" \",TIMEVALUE(LEFT(K13,2)&\":\"&MID(K13,3,2)&\":\"&RIGHT(K13,2)))","v":" "}," "]
[null,"MP 4.1- Lv. New Hill - Southbound",null,{"$f":"IF(C14=0,\" \",TIMEVALUE(LEFT(C14,2)&\":\"&MID(C14,3,2)&\":\"&RIGHT(C14,2)))","v":" "},null,{"$f":"IF(E14=0,\" \",TIMEVALUE(LEFT(E14,2)&\":\"&MID(E14,3,2)&\":\"&RIGHT(E14,2)))","v":" "},null,{"$f":"IF(G14=0,\" \",TIMEVALUE(LEFT(G14,2)&\":\"&MID(G14,3,2)&\":\"&RIGHT(G14,2)))","v":" "},null,{"$f":"IF(I14=0,\" \",TIMEVALUE(LEFT(I14,2)&\":\"&MID(I14,3,2)&\":\"&RIGHT(I14,2)))","v":" "},null,{"$f":"IF(K14=0,\" \",TIMEVALUE(LEFT(K14,2)&\":\"&MID(K14,3,2)&\":\"&RIGHT(K14,2)))","v":" "}]
[null,"MP 2.1 - Midway Southbound",null," ",null," ",null," ",null," ",null," "]
[null,"Yard Limits*",null," ",null," ",null," ",null," ",null," "]
[null,"MP 0.1 - ON SPOT",null," ",null," ",null," ",null," ",null," "]
[null,"NOTE:",null,{"$f":"IF(C17=0,\" \",$L$2)","v":" "},null,{"$f":"IF(E17=0,\" \",$L$2)","v":" "},null,{"$f":"IF(G17=0,\" \",$L$2)","v":" "},null,{"$f":"IF(I17=0,\" \",$L$2)","v":" "},null,{"$f":"IF(K17=0,\" \",$L$2)","v":" "}]
[null,null,null," ",null," ",null,{"$f":"IF(G19=0,\" \",TIMEVALUE(LEFT(G19,2)&\":\"&MID(G19,3,2)&\":\"&RIGHT(G19,2)))","v":" "},null,{"$f":"IF(I19=0,\" \",TIMEVALUE(LEFT(I19,2)&\":\"&MID(I19,3,2)&\":\"&RIGHT(I19,2)))","v":" "},null," "]
[null,100]
[null,101]
[null,200]
[null,201]
[null,308]
[null,"Cab",null,{"$f":"IF(D8=0,\" \",\"0\")","v":" "},null,{"$f":"IF(F8=0,\" \",\"0\")","v":" "},null,{"$f":"IF(H8=0,\" \",\"0\")","v":" "},null,{"$f":"IF(J8=0,\" \",\"0\")","v":" "},null,{"$f":"IF(L8=0,\" \",\"0\")","v":" "}]
[null,"OTHER",null,{"$f":"IF(D8=0,\" \",\"0\")","v":" "},null,{"$f":"IF(F8=0,\" \",\"0\")","v":" "},null,{"$f":"IF(H8=0,\" \",\"0\")","v":" "},null,{"$f":"IF(J8=0,\" \",\"0\")","v":" "},null,{"$f":"IF(L8=0,\" \",\"0\")","v":" "}]
[null,"TOTAL PER TRAIN",null,{"$f":"SUM(D20:D26)","v":0},null,{"$f":"SUM(F20:F26)","v":0},null,{"$f":"SUM(H20:H26)","v":0},null,{"$f":"SUM(J20:J26)","v":0},null,{"$f":"SUM(L20:L26)","v":0}]
[null,"RUNNING TOTAL",null,{"$f":"D27","v":0},null,{"$f":"D28+F27","v":0},null,{"$f":"F28+H27","v":0},null,{"$f":"J27+H28","v":0},null,{"$f":"L27+J28","v":0}]
[null,"ADVANCE SALES"]
[null,"PROMOTION SALES",null,null,null,null,null,null,null,null,null,null,"↓Check Names↓"]
[null,null,null,null,null,null,null,null,null,null,null,"FRA 6180-55 TOTAL:"]
[null,null,null,null,null,null,null,null,null,null,null,"(Total with other Passenger Counts and enter on BOX 17)"]
[null,"CREW:",null,"(FRA REQUIRED)"]
[null,"Dispatcher:  "]
[null,"Engineer:  "]
[null,"Conductor"]
[]
[null,"Signal Operator:  "]
[null,"Head Brakeman:  "]
[null,"Rear Brakeman"]
[null,"Actor Drop off/Pick up Engineer(s):"]
[]
[null,"PART 2:",null,null,null,null,null,null,null,"Train Miles"]
[null,"FRA PASSENGER MILES*",null,null,null,null,null,"FRA 6180-55:",null,{"$f":"M29*8","v":0},null,"(Total with other Passenger Miles and enter on BOX 16)"]
[null,"FRA PASSENGER TRAIN MILES*",null,"Number of Trains: ",null,null,null,"FRA 6180-55:",null,{"$f":"F46*8","v":0},null,"(Total with other train miles and enter on BOX 12)"]
[null,"* Note: 8 miles used for each trip"]
[]
[null,"PART 3:"]
[null,"WEATHER: (FRA REQUIRED)"]
[null,"Temperature (FRA REQUIRED)"]
[null,"(IF NEEDED)"]
[null,"REMARKS:"]

{"sheet":"Sheet2","index":4,"n_rows":52,"n_cols":13,"rows_kept":52,"cut":false,"hidden":false,"merged":[[0,1,0,12],[1,7,1,9]]}
[null,"New Hope Valley Railway"]
[null,"TIMETABLE 7",null,null,null,"DATE:",null,null,null,null,null,"R","Bonsal, NC"]
[]
[null,null,null,null,null,null,null,{"$f":"IF(H2=0,\" \",VLOOKUP(H2,'2023_Trains'!C8:M59,11,))","v":" "}]
[null,"PART 1: PASSENGER COUNT"]
[null,"SCHEDULED TIME",null,{"$f":"IF($H$2=0,\" \",IF(VLOOKUP($H$2,'2023_Trains'!$C$7:$M$60,4)=0,\" \",VLOOKUP($H$2,'2023_Trains'!$C$7:$M$60,4,FALSE)))","v":" "},null,{"$f":"IF($H$2=0,\" \",IF(VLOOKUP($H$2,'2023_Trains'!$C$7:$M$60,5)=0,\" \",VLOOKUP($H$2,'2023_Trains'!$C$7:$M$60,5,FALSE)))","v":" "},null,{"$f":"IF($H$2=0,\" \",IF(VLOOKUP($H$2,'2023_Trains'!$C$7:$M$60,6)=0,\" \",VLOOKUP($H$2,'2023_Trains'!$C$7:$M$60,6,FALSE)))","v":" "},null,{"$f":"IF($H$2=0,\" \",IF(VLOOKUP($H$2,'2023_Trains'!$C$7:$M$60,7)=0,\" \",VLOOKUP($H$2,'2023_Trains'!$C$7:$M$60,7,FALSE)))","v":" "},null,{"$f":"IF($H$2=0,\" \",IF(VLOOKUP($H$2,'2023_Trains'!$C$7:$M$60,8)=0,\" \",VLOOKUP($H$2,'2023_Trains'!$C$7:$M$60,8,FALSE)))","v":" "}]
[null,"TRAIN NUMBER",null,{"$f":"IF(D6=\" \",\" \",VALUE(D6))","v":" "},null,{"$f":"IF(F6=\" \",\" \",VALUE(F6))","v":" "},null,{"$f":"IF(H6=\" \",\" \",VALUE(H6))","v":" "},null," ",null," "]
[null,"ENGINE:"]
[]
[null,"MP 0.1 - Depart Northbound",null,{"$f":"IF(C10=0,\" \",TIMEVALUE(LEFT(C10,2)&\":\"&MID(C10,3,2)&\":\"&RIGHT(C10,2)))","v":" "},null," ",null,{"$f":"IF(G10=0,\" \",TIMEVALUE(LEFT(G10,2)&\":\"&MID(G10,3,2)&\":\"&RIGHT(G10,2)))","v":" "},null,{"$f":"IF(I10=0,\" \",TIMEVALUE(LEFT(I10,2)&\":\"&MID(I10,3,2)&\":\"&RIGHT(I10,2)))","v":" "},null,{"$f":"IF(K10=0,\" \",TIMEVALUE(LEFT(K10,2)&\":\"&MID(K10,3,2)&\":\"&RIGHT(K10,2)))","v":" "}]
[null,"Yard Limits*"]
[null,"MP 2.1 - Midway Northbound",null,{"$f":"IF(C12=0,\" \",TIMEVALUE(LEFT(C12,2)&\":\"&MID(C12,3,2)&\":\"&RIGHT(C12,2)))","v":" "},null,{"$f":"IF(E12=0,\" \",TIMEVALUE(LEFT(E12,2)&\":\"&MID(E12,3,2)&\":\"&RIGHT(E12,2)))","v":" "},null,{"$f":"IF(G12=0,\" \",TIMEVALUE(LEFT(G12,2)&\":\"&MID(G12,3,2)&\":\"&RIGHT(G12,2)))","v":" "},null,{"$f":"IF(I12=0,\" \",TIMEVALUE(LEFT(I12,2)&\":\"&MID(I12,3,2)&\":\"&RIGHT(I12,2)))","v":" "},null,{"$f":"IF(K12=0,\" \",TIMEVALUE(LEFT(K12,2)&\":\"&MID(K12,3,2)&\":\"&RIGHT(K12,2)))","v":" "}]
[null,"MP 4.1 - Arr.  New Hill",null,{"$f":"IF(C13=0,\" \",TIMEVALUE(LEFT(C13,2)&\":\"&MID(C13,3,2)&\":\"&RIGHT(C13,2)))","v":" "},null,{"$f":"IF(E13=0,\" \",TIMEVALUE(LEFT(E13,2)&\":\"&MID(E13,3,2)&\":\"&RIGHT(E13,2)))","v":" "},null,{"$f":"IF(G13=0,\" \",TIMEVALUE(LEFT(G13,2)&\":\"&MID(G13,3,2)&\":\"&RIGHT(G13,2)))","v":" "},null,{"$f":"IF(I13=0,\" \",TIMEVALUE(LEFT(I13,2)&\":\"&MID(I13,3,2)&\":\"&RIGHT(I13,2)))","v":" "},null,{"$f":"IF(K13=0,\" \",TIMEVALUE(LEFT(K13,2)&\":\"&MID(K13,3,2)&\":\"&RIGHT(K13,2)))","v":" "}," "]
[null,"MP 4.1- Lv. New Hill - Southbound",null,{"$f":"IF(C14=0,\" \",TIMEVALUE(LEFT(C14,2)&\":\"&MID(C14,3,2)&\":\"&RIGHT(C14,2)))","v":" "},null,{"$f":"IF(E14=0,\" \",TIMEVALUE(LEFT(E14,2)&\":\"&MID(E14,3,2)&\":\"&RIGHT(E14,2)))","v":" "},null,{"$f":"IF(G14=0,\" \",TIMEVALUE(LEFT(G14,2)&\":\"&MID(G14,3,2)&\":\"&RIGHT(G14,2)))","v":" "},null,{"$f":"IF(I14=0,\" \",TIMEVALUE(LEFT(I14,2)&\":\"&MID(I14,3,2)&\":\"&RIGHT(I14,2)))","v":" "},null,{"$f":"IF(K14=0,\" \",TIMEVALUE(LEFT(K14,2)&\":\"&MID(K14,3,2)&\":\"&RIGHT(K14,2)))","v":" "}]
[null,"MP 2.1 - Midway Southbound",null," ",null," ",null," ",null," ",null," "]
[null,"Yard Limits*",null," ",null," ",null," ",null," ",null," "]
[null,"MP 0.1 - ON SPOT",null," ",null," ",null," ",null," ",null," "]
[null,"NOTE:",null,{"$f":"IF(C17=0,\" \",$L$2)","v":" "},null,{"$f":"IF(E17=0,\" \",$L$2)","v":" "},null,{"$f":"IF(G17=0,\" \",$L$2)","v":" "},null,{"$f":"IF(I17=0,\" \",$L$2)","v":" "},null,{"$f":"IF(K17=0,\" \",$L$2)","v":" "}]
[null,null,null," ",null," ",null,{"$f":"IF(G19=0,\" \",TIMEVALUE(LEFT(G19,2)&\":\"&MID(G19,3,2)&\":\"&RIGHT(G19,2)))","v":" "},null,{"$f":"IF(I19=0,\" \",TIMEVALUE(LEFT(I19,2)&\":\"&MID(I19,3,2)&\":\"&RIGHT(I19,2)))","v":" "},null," "]
[null,100]
[null,101]
[null,200]
[null,201]
[null,308]
[null,"Cab",null,{"$f":"IF(D8=0,\" \",\"0\")","v":" "},null,{"$f":"IF(F8=0,\" \",\"0\")","v":" "},null,{"$f":"IF(H8=0,\" \",\"0\")","v":" "},null,{"$f":"IF(J8=0,\" \",\"0\")","v":" "},null,{"$f":"IF(L8=0,\" \",\"0\")","v":" "}]
[null,"OTHER",null,{"$f":"IF(D8=0,\" \",\"0\")","v":" "},null,{"$f":"IF(F8=0,\" \",\"0\")","v":" "},null,{"$f":"IF(H8=0,\" \",\"0\")","v":" "},null,{"$f":"IF(J8=0,\" \",\"0\")","v":" "},null,{"$f":"IF(L8=0,\" \",\"0\")","v":" "}]
[null,"TOTAL PER TRAIN",null,{"$f":"SUM(D20:D26)","v":0},null,{"$f":"SUM(F20:F26)","v":0},null,{"$f":"SUM(H20:H26)","v":0},null,{"$f":"SUM(J20:J26)","v":0},null,{"$f":"SUM(L20:L26)","v":0}]
[null,"RUNNING TOTAL",null,{"$f":"D27","v":0},null,{"$f":"D28+F27","v":0},null,{"$f":"F28+H27","v":0},null,{"$f":"J27+H28","v":0},null,{"$f":"L27+J28","v":0}]
[null,"ADVANCE SALES"]
[null,"PROMOTION SALES",null,null,null,null,null,null,null,null,null,null,"↓Check Names↓"]
[null,null,null,null,null,null,null,null,null,null,null,"FRA 6180-55 TOTAL:"]
[null,null,null,null,null,null,null,null,null,null,null,"(Total with other Passenger Counts and enter on BOX 17)"]
[null,"CREW:",null,"(FRA REQUIRED)"]
[null,"Dispatcher:  "]
[null,"Engineer:  "]
[null,"Conductor"]
[]
[null,"Signal Operator:  "]
[null,"Head Brakeman:  "]
[null,"Rear Brakeman"]
[null,"Actor Drop off/Pick up Engineer(s):"]
[]
[null,"PART 2:",null,null,null,null,null,null,null,"Train Miles"]
[null,"FRA PASSENGER MILES*",null,null,null,null,null,"FRA 6180-55:",null,{"$f":"M29*8","v":0},null,"(Total with other Passenger Miles and enter on BOX 16)"]
[null,"FRA PASSENGER TRAIN MILES*",null,"Number of Trains: ",null,null,null,"FRA 6180-55:",null,{"$f":"F46*8","v":0},null,"(Total with other train miles and enter on BOX 12)"]
[null,"* Note: 8 miles used for each trip"]
[]
[null,"PART 3:"]
[null,"WEATHER: (FRA REQUIRED)"]
[null,"Temperature (FRA REQUIRED)"]
[null,"(IF NEEDED)"]
[null,"REMARKS:"]

{"sheet":"02-01","index":5,"n_rows":52,"n_cols":14,"rows_kept":52,"cut":false,"hidden":false,"merged":[[0,1,0,12],[1,7,1,9]]}
[null,"New Hope Valley Railway"]
[null,"TIMETABLE 7",null,null,null,"DATE:",null,"2023-02-01",null,null,null,"R","Bonsal, NC"]
[]
[]
[null,"PART 1: PASSENGER COUNT"]
[null,"SCHEDULED TIME",null,"10:30:30",null," ",null," ",null," ",null," "]
[null,"TRAIN NUMBER",null,"1030"]
[null,"ENGINE:",null,1686,671]
[]
[null,"MP 0.1 - Depart Northbound","1045","10:45:45",null," ",null," ",null," ",null," "]
[null,"Yard Limits*",null,"R",null," ",null," ",null," ",null," "]
[null,"MP 2.1 - Midway Northbound",null," ",null," ",null," ",null," ",null," "]
[null,"MP 4.1 - Arr.  New Hill",null," ",null," ",null," ",null," ",null," "," "]
[null,"MP 4.1- Lv. New Hill - Southbound",null," ",null," ",null," ",null," ",null," "]
[null,"MP 2.1 - Midway Southbound",null," ",null," ",null," ",null," ",null," "]
[null,"Yard Limits*",null," ",null," ",null," ",null," ",null," "]
[null,"MP 0.1 - ON SPOT","1145","11:45:45",null," ",null," ",null," ",null," ",null,"`"]
[null,"NOTE:",null,"* = CHECK MARK ONLY",null,"TBD"]
[null,null,null,null,null,null,null,"PASSENGER COUNTS"]
[null,100,null," "]
[null,101,null," "]
[null,200,null," "]
[null,201,null," "]
[null,308,null,"0"]
[null,"Cab",null,1,null," ",null," ",null," ",null," "]
[null,"OTHER",null,"0",null," ",null," ",null," ",null," "]
[null,"TOTAL PER TRAIN",null,1,null,0,null,0,null,0,null,0]
[null,"RUNNING TOTAL",null,1,null,1,null,1,null,1,null,1]
[null,"ADVANCE SALES",null,null,null,null,null,null,null,null,null,null,"↓Check Names↓"]
[null,"PROMOTION SALES","2023-07-15",0,4]
[null,null,null,null,null,null,null,null,null,null,null,"FRA 6180-55 TOTAL:"]
[null,null,null,null,null,null,null,null,null,null,null,"(Total with other Passenger Counts and enter on BOX 17)"]
[null,"CREW:","2023-07-28",null,1,"10:30:00"]
[null,"Dispatcher:  ",null,"Ted Dunn"]
[null,"Engineer:  ",null,"Chris Tilley"]
[null,"Conductor"]
[]
[null,"Signal Operator:  ",null,"Art Kotz & Victor Varney"]
[null,"Head Brakeman:  ",null,"Rob Grau"]
[null,"Rear Brakeman"]
[null,"Actor Drop off/Pick up Engineer(s):"]
[]
[null,"PART 2:",null,null,null,null,null,null,null,"Train Miles"]
[null,"FRA PASSENGER MILES*",null,null,null,null,null,"FRA 6180-55:",null,{"$error":"#REF!"},null,"(Total with other Passenger Miles and enter on BOX 16)"]
[null,"FRA PASSENGER TRAIN MILES*",null,"Number of Trains: ",null,null,null,"FRA 6180-55:",null,0,null,"(Total with other train miles and enter on BOX 12)"]
[null,"* Note: 8 miles used for each trip"]
[]
[null,"PART 3:"]
[null,"WEATHER: (FRA REQUIRED)",null,"Overcast"]
[null,"Temperature (FRA REQUIRED)",null,44]
[null,"(IF NEEDED)"]
[null,"REMARKS:"]

{"sheet":"Blank Sheet","index":6,"n_rows":52,"n_cols":9,"rows_kept":52,"cut":false,"hidden":false,"merged":[[0,1,0,7],[1,4,1,5]]}
[null,"New Hope Valley Railway"]
[null,"TIMETABLE 7",null,"DATE:",null,null,"R","Bonsal, NC"]
[]
[]
[null,"PART 1: PASSENGER COUNT"]
[null,"SCHEDULED TIME",{"$f":"IF(C7=0,\" \",TIMEVALUE(LEFT(C7,2)&\":\"&MID(C7,3,2)&\":\"&RIGHT(C7,2)))","v":" "},{"$f":"IF(D7=0,\" \",TIMEVALUE(LEFT(D7,2)&\":\"&MID(D7,3,2)&\":\"&RIGHT(D7,2)))","v":" "},{"$f":"IF(E7=0,\" \",TIMEVALUE(LEFT(E7,2)&\":\"&MID(E7,3,2)&\":\"&RIGHT(E7,2)))","v":" "},{"$f":"IF(F7=0,\" \",TIMEVALUE(LEFT(F7,2)&\":\"&MID(F7,3,2)&\":\"&RIGHT(F7,2)))","v":" "},{"$f":"IF(G7=0,\" \",TIMEVALUE(LEFT(G7,2)&\":\"&MID(G7,3,2)&\":\"&RIGHT(G7,2)))","v":" "}]
[null,"TRAIN NUMBER"]
[null,"ENGINE:"]
[]
[null,"MP 0.1 - Depart Northbound"]
[null,"Yard Limits*"]
[null,"MP 2.1 - Midway Northbound"]
[null,"MP 4.1 - Arr.  New Hill",null,null,null,null,null," "]
[null,"MP 4.1- Lv. New Hill - Southbound"]
[null,"MP 2.1 - Midway Southbound"]
[null,"Yard Limits*"]
[null,"MP 0.1 - ON SPOT",null,null,null,null,null,null,"`"]
[null,"NOTE:","* = CHECK MARK ONLY"]
[null,null,null,null,"PASSENGER COUNTS"]
[null,100]
[null,101]
[null,200]
[null,201]
[null,308]
[null,"Cab"]
[null,"OTHER"]
[null,"TOTAL PER TRAIN",{"$f":"SUM(C20:C26)","v":0},{"$f":"SUM(D20:D26)","v":0},{"$f":"SUM(E20:E26)","v":0},{"$f":"SUM(F20:F26)","v":0},{"$f":"SUM(G20:G26)","v":0}]
[null,"RUNNING TOTAL",{"$f":"C27","v":0},{"$f":"C28+D27","v":0},{"$f":"D28+E27","v":0},{"$f":"F27+E28","v":0},{"$f":"G27+F28","v":0}]
[null,"ADVANCE SALES"]
[null,"PROMOTION SALES"]
[null,null,null,null,null,null,"FRA 6180-55 TOTAL:"]
[null,null,null,null,null,null,"(Total with other Passenger Counts and enter on BOX 17)"]
[null,"CREW:","(FRA REQUIRED)"]
[null,"Dispatcher:  "]
[null,"Engineer:  "]
[null,"Conductor"]
[]
[null,"Signal Operator:  "]
[null,"Head Brakeman:  "]
[null,"Rear Brakeman"]
[null,"Actor Drop off/Pick up Engineer(s):"]
[]
[null,"PART 2:",null,null,null,"Train Miles"]
[null,"FRA PASSENGER MILES*",null,null,"FRA 6180-55:",{"$f":"H29*8","v":0},"(Total with other Passenger Miles and enter on BOX 16)"]
[null,"FRA PASSENGER TRAIN MILES*","Number of Trains: ",null,"FRA 6180-55:",{"$f":"D46*8","v":0},"(Total with other train miles and enter on BOX 12)"]
[null,"* Note: 8 miles used for each trip"]
[]
[null,"PART 3:"]
[null,"WEATHER: (FRA REQUIRED)"]
[null,"Temperature (FRA REQUIRED)"]
[null,"(IF NEEDED)"]
[null,"REMARKS:"]

{"sheet":"list2","index":7,"n_rows":57,"n_cols":15,"rows_kept":57,"cut":false,"hidden":false,"merged":[]}
[null,"Last Name","First",null,"Last Name","First",null,"Last Name","First",null,"Last Name","First",null,"Last Name","First"]
[null,"Albers","Ray",null,"Duerst","Leslie Cohen",null,"Kaplan","Robert",null,"Obermiller","Kyle",null,"Szpunar","Mike"]
[null,"Arthur","Tommy",null,"Dunn","Ted",null,"Kearse","Mike",null,"Olsen","Dennis",null,"Taylor","Eddie"]
[null,"Barham","Mary J",null,"Edwards","Kevin",null,"Kincheloe","William",null,"Olsen","Marian",null,"Tilley","Scott"]
[null,"Barth","Sue",null,"Edwards","Teresa",null,"Koss","Linda",null,"Pace","Nicholas",null,"Tilley","Christopher H"]
[null,"Barth (71)","Paul",null,"Emmerson (63)","Paul",null,"Koss","Roger A",null,"Parker","Carol",null,"Tilley","Mikayla"]
[null,"Baschon","Paul J",null,"England","Nick",null,"Kotz","Art",null,"Pate (Whitlock)","Davette",null,"Traylor","Glenn O"]
[null,"Baschon","Sharon",null,"Eschmann","Gene ",null,"Kreuzinger","Thomas",null,"Pate (Whitlock)","Elle (18)",null,"Traylor","Janet "]
[null,"Baschon","Sara",null,"Evers","Randy",null,"Kuttner 16","Calvin",null,"Pate(26)","Joey",null,"Tredway","John"]
[null,"Bass*","Judy",null,"Evers","Carol",null,"Lackey","M Gray",null,"Payne","Scott",null,"Tredway","Suzanne"]
[null,"Becker","Scott",null,"Ezzell, Jr","Eugene W",null,"Lackey","Mack E",null,"Peterson, Jr","Stephen G",null,"Vann","John"]
[null,"Betz","John",null,"Fairbrother","Craig",null,"Lasater","Richard T",null,"Portzer","Jeffrey",null,"Vargas II","Jose"]
[null,"Betz","Grace ",null,"Fairbrother - Gallan","Cheryl",null,"Lathrop","David D.",null,"Portzet (Thomas)","Janel",null,"Varney","R. Victor"]
[null,"Blazier","Dennis",null,"Finger","John Y",null,"Lindenmuth","Matt",null,"Reagan, III","James A",null,"Walkins","Deborah"]
[null,"Bock","Richard",null,"Gagnon","Scott",null,"Lucas","Leon T",null,"Richman","Ted",null,"Walkins","Gary"]
[null,"Boettcher","Harold",null,"Giordano","Paul",null,"MacLean","Michael S",null,"Robertson","Galen",null,"Ward","Cliff"]
[null,"Bogaski","Alex",null,"Giordano","Karen",null,"MacLean","Emma (2)",null,"Robinson","David",null,"Ward","Cooper"]
[null,"Bohon","John",null,"Gladfelter","Jack O.",null,"MacLean","Lindsay (4)",null,"Root","Carol",null,"Weeks","Joanthan"]
[null,"Boli","Chris R",null,"Gladfelter","Donna",null,"MacLean","Amy",null,"Rosenbaum","Eleanor",null,"West","Sranley"]
[null,"Brook","David",null,"Graham","Dave",null,"Macy","Jonathan D.",null,"Roth (67)","Tom (67)",null,"Whitten","Jim"]
[null,"Brownfield","Chris",null,"Grajek","Michael",null,"Majors, Jr","Robert P",null,"Roule","Robert",null,"Wilkins","Linda"]
[null,"Brownfield","Anderson (8)",null,"Grau","Cindy",null,"Mangum","James W",null,"Roule","Barbara",null,"Wilkins","Percy"]
[null,"Campbell","Carl David",null,"Grau","Robert (Rob)",null,"Manhard","John",null,"Royal","Wes",null,"Wilkus","Brandt"]
[null,"Campbell","Catina",null,"Gray","Richard",null,"Markham","Felix",null,"Royal","Elizabeth",null,"Winchell","Dennis"]
[null,"Camporeale","Sal",null,"Harshbarger","Gene",null,"Marks","Kenneth",null,"Rueckert","Bill",null,"Woodard","James"]
[null,"Care","George",null,"Hoffman","Robert",null,"Marshall","Donald",null,"Sadler","Will",null,"Workman","Jimmy"]
[null,"Carroll","Tim",null,"Hoffman","Darlene",null,"Martin","Logan",null,"Saltsgaver (18)","Daniel",null,"Workman","Martha"]
[null,"Casselberry ","Gina",null,"Horn","John (Jay)",null,"Mattson, Jr.","Alan",null,"Saltsgaver (21)","Nick",null,"Wright ","John"]
[null,"Chasco","David",null,"Horn","M  Richard",null,"McElwaine","Scott",null,"Seymour","Daniel",null,"Williams","Brenda"]
[null,"Chasco","Carmen",null,"Horn","Kate",null,"McGraw","Thomas",null,"Seymour","Kathy",null,"Williams","Wallace W"]
[null,"Clark","Ed",null,"Hussey","Anita",null,"McKinney","Michael",null,"Shanklin","Jule"]
[null,"Cobb","James E",null,"Hutchinson","Diana",null,"Meade","James B",null,"Shimpi","Aidam",null,"ADD April 17, 2021"]
[null,"Conner","Robert",null,"Hutchinson","Tom",null,"Meredith","Jessica",null,"Siegl","Brendan",null,"Caseber","Andrea"]
[null,"Connors","Mark",null,"Hyman","Gary",null,"Meredith","Russ",null,"Siegl","Adelaide",null,"Koprowski","Bill"]
[null,"Connors","Nicholas ",null,"Jatko","James",null,"Middour","Brenda",null,"Siegl","Chris  ",null,"Koprowski","Theresa"]
[null,"Connors","Veronica",null,"Jennings","Evan",null,"Middour, Jr","Robert C",null,"Slaughter","Joseph B",null,"Koprowski","Kyra"]
[null,"Connors","Andrea",null,"Jessup","Lester",null,"Mills","Joe",null,"Slaughter","Tammy Krause",null,"Barham","Brian"]
[null,"Cook","James R",null,"Jessup","Cornelia",null,"Mills","Vickie",null,"Slugg","Pete",null,"Smith","Michael"]
[null,"Crowley","Bob",null,"Johnson","Reid C",null,"Moody III","Charles J",null,"Smith","Scott T",null,"Rich","Grey"]
[null,"DeGaetano","Steve",null,"Johnson","Jack",null,"Morck","John F",null,"Speight","David",null,"Sanders","David"]
[null,"Dennis","Darrell F",null,"Johnson - Mitchell","David",null,"Morck","Debbie",null,"Speight","Judy"]
[null,"DeWitt","Nathan",null,"Johnston","Greg",null,"Morrison","Robert R",null,"Staller","Paul"]
[null,"DeWitt","Erlene",null,"Johnston","Joseph (17)",null,"Muller","Pam",null,"Stevens","Joseph B"]
[null,"Dick","David G",null,"Johnston","Joshua (14)",null,"Naismith","Joseph",null,"Stirewalt","Charles"]
[null,"Dick - Baenan ","Nancy",null,"Johnston","Marnai",null,"Newton","Walter R. (Bob)",null,"Stocum","Thomas"]
[null,"Donoghue","Mathew",null,"Jones","Wayne",null,"Northcutt","Ralph W",null,"Sullivan","Luke"]
[null,"Duerst","Mark",null,"Joyner","Vivian",null,"Oberklein","Dan",null,"Sumerell","Jimmy"]
[]
[]
["New applicant -need member appoval ",null,null,"On Ballot: 7/17/2021",null,null,null,"Did not Renewed"]
[null,"Rousseau","Robert",null,null,null,null,"Cameron","Roger",null,"McGrady","Mickey"]
[null,"Forbes","Jake",null,null,null,null,"Cameron","Lorraine",null,"Pearlman","Larry"]
[null,"Reevy","Tony",null,null,null,null,"DeGaetano","Chris D",null,"Pearlman","Lisa"]
[null,"Weaver (Reevy)","Caoline",null,null,null,null,"Eberle","Ted",null,"Roberts","Josh"]
[null,null,null,null,null,null,null,"Hill","Robert",null,"Roth","Gray"]
[null,null,null,null,null,null,null,"Hill","Glenn",null,"Tilley","Scott (Shiho)"]
[null,null,null,null,null,null,null,"Hooks","Kevin",null,"Tomlinson","Doug"]

{"sheet":"DATA_Lists","index":8,"n_rows":217,"n_cols":24,"rows_kept":217,"cut":false,"hidden":false,"merged":[]}
[]
[null,null,null,null,null,null,null,null,null,null,null,null,"Victor Varney"]
[null,null,null,null,null,null,null,null,null,null,null,null,null,null,null,null,null,null,"Albers","Ray",{"$f":"T3&\" \"&S3","v":"Ray Albers"},null,null,"Ray Albers"]
[null,null,null,null,null,null,null,null,null,null,null,null,null,null,null,null,null,null,"Arthur","Tommy","Tommy Arthur",null,null,"Tommy Arthur"]
["Engines",null,"Brakeman",null,"Signal Operator",null,"Conductor",null,"Dispatcher",null,"Engineer",null,null,null,null,null,null,null,"Barham","Mary J","Mary J Barham",null,null,"Mary J Barham"]
[699,null,"Dennis Winchell",null,null,null,"Donald Marshall",null,"Ted Dunn",null,null,null,null,null,null,null,null,null,"Barth","Sue","Sue Barth",null,null,"Sue Barth"]
["671",null,"Harold Boettcher",null,"Chris R Boli",null,"Charles Stirewalt",null,"Richard Gray",null,"Harold Boettcher",null,null,null,null,null,null,null,"Barth (71)","Paul","Paul Barth (71)",null,null,"Paul Barth (71)"]
[1686,null,"Rob Grau",null,"Jay Horn",null,"Chris Tilley",null,"Billy Rueckert",null,"Gene Ezzell",null,null,null,null,null,null,null,"Baschon","Paul J","Paul J Baschon",null,null,"Paul J Baschon"]
[1640,null,"Joe Mills",null,"Paul Emmerson",null,"John Tredway",null,"Victor Varney",null,"Rob Grau",null,null,null,null,null,null,null,"Baschon","Sharon","Sharon Baschon",null,null,"Sharon Baschon"]
[null,null,"John Morck",null,"Dick Horn",null,"Victor Varney",null,null,null,"Roger Koss",null,null,null,null,null,null,null,"Baschon","Sara","Sara Baschon",null,null,"Sara Baschon"]
[null,null,"Brandt Wilkus",null,"Nathan DeWitt",null,null,null,null,null,"Gray Lackey",null,null,null,null,null,null,null,"Bass*","Judy","Judy Bass*",null,null,"Judy Bass*"]
[null,null,"Chris Tilley",null,"Paul Giordano",null,null,null,null,null,"Michael S MacLean",null,null,null,null,null,null,null,"Becker","Scott","Scott Becker",null,null,"Scott Becker"]
[17,null,"Charles Stirewalt",null,null,null,null,null,null,null,"Joe Mills",null,null,null,null,null,null,null,"Betz","John","John Betz",null,null,"John Betz"]
[null,null,"Victor Varney",null,null,null,null,null,null,null,"John F Morck",null,null,null,null,null,null,null,"Betz","Grace ",47,null,null,47]
[null,null,"Nick Conner",null,null,null,null,null,null,null,"Ray Albers",null,null,null,null,null,null,null,"Blazier","Dennis",{"$f":"T15&\" \"&S15","v":"Dennis Blazier"},null,null,"Dennis Blazier"]
[null,null,"Fpaul",null,null,null,null,null,null,null,"Chris Tilley",null,null,null,null,null,null,null,"Bock","Richard","Richard Bock",null,null,"Richard Bock"]
[null,null,"John Tredway",null,null,null,null,null,null,null,null,null,null,null,null,null,null,null,"Boettcher","Harold","Harold Boettcher",null,null,"Harold Boettcher"]
[null,null,"Donald Marshall",null,null,null,null,null,null,null,null,null,null,null,null,null,null,null,"Bogaski","Alex","Alex Bogaski",null,null,"Alex Bogaski"]
[null,null,"Roger Koss",null,null,null,null,null,null,null,null,null,null,null,null,null,null,null,"Bohon","John","John Bohon",null,null,"John Bohon"]
[null,null,"Kyle Obermiller",null,null,null,null,null,{"$f":"H20&\" \"&G20","v":" "},null,null,null,null,null,null,null,null,null,"Boli","Chris R","Chris R Boli",null,null,"Chris R Boli"]
[null,null,null,null,null,null,null,null,{"$f":"H21&\" \"&G21","v":" "},null,null,null,null,null,null,null,null,null,"Brook","David","David Brook",null,null,"David Brook"]
[null,null,null,null,null,null,null,null,{"$f":"H22&\" \"&G22","v":" "},null,null,null,null,null,null,null,null,null,"Brownfield","Chris","Chris Brownfield",null,null,"Chris Brownfield"]
[null,null,null,null,null,null,null,null,null,null,null,null,null,null,null,null,null,null,"Brownfield","Anderson (8)","Anderson (8) Brownfield",null,null,"Anderson (8) Brownfield"]
[null,null,null,null,null,null,null,null,null,null,null,null,null,null,null,null,null,null,"Campbell","Carl David","Carl David Campbell",null,null,"Carl David Campbell"]
[null,null,null,null,null,null,null,null,null,null,null,null,null,null,null,null,null,null,"Campbell","Catina","Catina Campbell",null,null,"Catina Campbell"]
[null,null,null,null,null,null,null,null,null,null,null,null,null,null,null,null,null,null,"Camporeale","Sal","Sal Camporeale",null,null,"Sal Camporeale"]
[null,null,null,null,null,null,null,null,null,null,null,null,null,null,"Weather",null,null,null,"Care","George","George Care",null,null,"George Care"]
[null,null,null,null,null,null,null,null,null,null,null,null,null,null,"Clear",null,null,null,"Carroll","Tim","Tim Carroll",null,null,"Tim Carroll"]
[null,null,null,null,null,null,null,null,null,null,null,null,null,null,"Overcast",null,null,null,"Casselberry ","Gina","Gina Casselberry ",null,null,"Gina Casselberry "]
[null,null,null,null,null,null,null,null,null,null,null,null,null,null,"Light Rain",null,null,null,"Chasco","David","David Chasco",null,null,"David Chasco"]
[null,null,null,null,null,null,null,null,null,null,null,null,null,null,"Rain",null,null,null,"Chasco","Carmen","Carmen Chasco",null,null,"Carmen Chasco"]
[null,null,null,null,null,null,null,null,null,null,null,null,null,null,"Partly Cloudy",null,null,null,"Clark","Ed","Ed Clark",null,null,"Ed Clark"]
["Member's",null,null,null,null,null,null,null,null,null,null,null,null,null,"Fog",null,null,null,"Cobb","James E","James E Cobb",null,null,"James E Cobb"]
["Names",null,null,null,null,null,null,null,null,null,null,null,null,null,"Drizzle",null,null,null,"Conner","Robert","Robert Conner",null,null,"Robert Conner"]
[null,null,null,null,null,null,null,null,null,null,null,null,null,null,"Hazy",null,null,null,"Connors","Mark","Mark Connors",null,null,"Mark Connors"]
[null,null,null,null,null,null,null,null,null,null,null,null,null,null,"Snow ",null,null,null,"Connors","Nicholas ","Nicholas  Connors",null,null,"Nicholas  Connors"]
[null,null,null,null,null,null,null,null,null,null,null,null,null,null,"Sleet",null,null,null,"Connors","Veronica","Veronica Connors",null,null,"Veronica Connors"]
[null,null,null,null,null,null,null,null,null,null,null,null,null,null,"Hail",null,null,null,"Connors","Andrea","Andrea Connors",null,null,"Andrea Connors"]
[null,null,null,null,null,null,null,null,null,null,null,null,null,null,"Freezing Rain",null,null,null,"Cook","James R","James R Cook",null,null,"James R Cook"]
[null,null,null,"Donald Marshall",null,null,null,null,null,null,null,null,null,null,null,null,null,null,"Crowley","Bob","Bob Crowley",null,null,"Bob Crowley"]
[null,null,null,null,null,null,null,null,null,null,null,null,null,null,null,null,null,null,"DeGaetano","Steve","Steve DeGaetano",null,null,"Steve DeGaetano"]
[null,null,null,null,null,null,null,null,null,null,null,null,null,null,null,null,null,null,"Dennis","Darrell F","Darrell F Dennis",null,null,"Darrell F Dennis"]
[null,null,null,null,null,null,null,null,null,null,null,null,null,null,null,null,null,null,"DeWitt","Nathan","Nathan DeWitt",null,null,"Nathan DeWitt"]
[null,null,null,null,null,null,null,null,null,null,null,null,null,null,null,null,null,null,"DeWitt","Erlene","Erlene DeWitt",null,null,"Erlene DeWitt"]
[null,null,null,null,null,null,null,null,null,null,null,null,null,null,null,null,null,null,"Dick","David G","David G Dick",null,null,"David G Dick"]
[null,null,null,null,null,null,null,null,null,null,null,null,null,null,null,null,null,null,"Dick - Baenan ","Nancy","Nancy Dick - Baenan ",null,null,"Nancy Dick - Baenan "]
[null,null,null,null,null,null,null,null,null,null,null,null,null,null,null,null,null,null,"Donoghue","Mathew","Mathew Donoghue",null,null,"Mathew Donoghue"]
[null,null,null,null,null,null,null,null,null,null,null,null,null,null,null,null,null,null,"Duerst","Mark","Mark Duerst",null,null,"Mark Duerst"]
[null,null,null,null,null,null,null,null,null,null,null,null,null,null,null,null,null,null,"Duerst","Leslie Cohen","Leslie Cohen Duerst",null,null,"Leslie Cohen Duerst"]
[null,null,null,null,null,null,null,null,null,null,null,null,null,null,null,null,null,null,"Dunn","Ted","Ted Dunn",null,null,"Ted Dunn"]
[null,null,null,null,null,null,null,null,null,null,null,null,null,null,null,null,null,null,"Edwards","Kevin","Kevin Edwards",null,null,"Kevin Edwards"]
[null,null,null,null,null,null,null,null,null,null,null,null,null,null,null,null,null,null,"Edwards","Teresa","Teresa Edwards",null,null,"Teresa Edwards"]
[null,null,null,null,null,null,null,null,null,null,null,null,null,null,null,null,null,null,"Emmerson (63)","Paul","Paul Emmerson (63)",null,null,"Paul Emmerson (63)"]
[null,null,null,null,null,null,null,null,null,null,null,null,null,null,null,null,null,null,"Engineerland","Nick","Nick Engineerland",null,null,"Nick Engineerland"]
[null,null,null,null,null,null,null,null,null,null,null,null,null,null,null,null,null,null,"Eschmann","Gene ","Gene  Eschmann",null,null,"Gene  Eschmann"]
[null,null,null,null,null,null,null,null,null,null,null,null,null,null,null,null,null,null,"Evers","Randy","Randy Evers",null,null,"Randy Evers"]
[null,null,null,null,null,null,null,null,null,null,null,null,null,null,null,null,null,null,"Evers","Carol","Carol Evers",null,null,"Carol Evers"]
[null,null,null,null,null,null,null,null,null,null,null,null,null,null,null,null,null,null,"Ezzell, Jr","Eugene W","Eugene W Ezzell, Jr",null,null,"Eugene W Ezzell, Jr"]
[null,null,null,null,null,null,null,null,null,null,null,null,null,null,null,null,null,null,"Fairbrother","Craig","Craig Fairbrother",null,null,"Craig Fairbrother"]
[null,null,null,null,null,null,null,null,null,null,null,null,null,null,null,null,null,null,"Fairbrother - Gallan","Cheryl","Cheryl Fairbrother - Gallan",null,null,"Cheryl Fairbrother - Gallan"]
[null,null,null,null,null,null,null,null,null,null,null,null,null,null,null,null,null,null,"Finger","John Y","John Y Finger",null,null,"John Y Finger"]
[null,null,null,null,null,null,null,null,null,null,null,null,null,null,null,null,null,null,"Gagnon","Scott","Scott Gagnon",null,null,"Scott Gagnon"]
[null,null,null,null,null,null,null,null,null,null,null,null,null,null,null,null,null,null,"Giordano","Paul","Paul Giordano",null,null,"Paul Giordano"]
[null,null,null,null,null,null,null,null,null,null,null,null,null,null,null,null,null,null,"Giordano","Karen","Karen Giordano",null,null,"Karen Giordano"]
[null,null,null,null,null,null,null,null,null,null,null,null,null,null,null,null,null,null,"Gladfelter","Jack O.","Jack O. Gladfelter",null,null,"Jack O. Gladfelter"]
[null,null,null,null,null,null,null,null,null,null,null,null,null,null,null,null,null,null,"Gladfelter","Donna","Donna Gladfelter",null,null,"Donna Gladfelter"]
[null,null,null,null,null,null,null,null,null,null,null,null,null,null,null,null,null,null,"Graham","Dave","Dave Graham",null,null,"Dave Graham"]
[null,null,null,null,null,null,null,null,null,null,null,null,null,null,null,null,null,null,"Grajek","Michael","Michael Grajek",null,null,"Michael Grajek"]
[null,null,null,null,null,null,null,null,null,null,null,null,null,null,null,null,null,null,"Grau","Cindy","Cindy Grau",null,null,"Cindy Grau"]
[null,null,null,null,null,null,null,null,null,null,null,null,null,null,null,null,null,null,"Grau","Robert (Rob)","Robert (Rob) Grau",null,null,"Robert (Rob) Grau"]
[null,null,null,null,null,null,null,null,null,null,null,null,null,null,null,null,null,null,"Gray","Richard","Richard Gray",null,null,"Richard Gray"]
[null,null,null,null,null,null,null,null,null,null,null,null,null,null,null,null,null,null,"Harshbarger","Gene","Gene Harshbarger",null,null,"Gene Harshbarger"]
[null,null,null,null,null,null,null,null,null,null,null,null,null,null,null,null,null,null,"Hoffman","Robert","Robert Hoffman",null,null,"Robert Hoffman"]
[null,null,null,null,null,null,null,null,null,null,null,null,null,null,null,null,null,null,"Hoffman","Darlene","Darlene Hoffman",null,null,"Darlene Hoffman"]
[null,null,null,null,null,null,null,null,null,null,null,null,null,null,null,null,null,null,"Horn","John (Jay)","John (Jay) Horn",null,null,"John (Jay) Horn"]
[null,null,null,null,null,null,null,null,null,null,null,null,null,null,null,null,null,null,"Horn","M  Richard","M  Richard Horn",null,null,"M  Richard Horn"]
[null,null,null,null,null,null,null,null,null,null,null,null,null,null,null,null,null,null,"Horn","Kate","Kate Horn",null,null,"Kate Horn"]
[null,null,null,null,null,null,null,null,null,null,null,null,null,null,null,null,null,null,"Hussey","Anita","Anita Hussey",null,null,"Anita Hussey"]
[null,null,null,null,null,null,null,null,null,null,null,null,null,null,null,null,null,null,"Hutchinson","Diana",{"$f":"T79&\" \"&S79","v":"Diana Hutchinson"},null,null,"Diana Hutchinson"]
[null,null,null,null,null,null,null,null,null,null,null,null,null,null,null,null,null,null,"Hutchinson","Tom","Tom Hutchinson",null,null,"Tom Hutchinson"]
[null,null,null,null,null,null,null,null,null,null,null,null,null,null,null,null,null,null,"Hyman","Gary","Gary Hyman",null,null,"Gary Hyman"]
[null,null,null,null,null,null,null,null,null,null,null,null,null,null,null,null,null,null,"Jatko","James","James Jatko",null,null,"James Jatko"]
[null,null,null,null,null,null,null,null,null,null,null,null,null,null,null,null,null,null,"Jennings","Evan","Evan Jennings",null,null,"Evan Jennings"]
[null,null,null,null,null,null,null,null,null,null,null,null,null,null,null,null,null,null,"Jessup","Lester","Lester Jessup",null,null,"Lester Jessup"]
[null,null,null,null,null,null,null,null,null,null,null,null,null,null,null,null,null,null,"Jessup","Cornelia","Cornelia Jessup",null,null,"Cornelia Jessup"]
[null,null,null,null,null,null,null,null,null,null,null,null,null,null,null,null,null,null,"Johnson","Reid C","Reid C Johnson",null,null,"Reid C Johnson"]
[null,null,null,null,null,null,null,null,null,null,null,null,null,null,null,null,null,null,"Johnson","Jack","Jack Johnson",null,null,"Jack Johnson"]
[null,null,null,null,null,null,null,null,null,null,null,null,null,null,null,null,null,null,"Johnson - Mitchell","David","David Johnson - Mitchell",null,null,"David Johnson - Mitchell"]
[null,null,null,null,null,null,null,null,null,null,null,null,null,null,null,null,null,null,"Johnston","Greg","Greg Johnston",null,null,"Greg Johnston"]
[null,null,null,null,null,null,null,null,null,null,null,null,null,null,null,null,null,null,"Johnston","Joseph (17)","Joseph (17) Johnston",null,null,"Joseph (17) Johnston"]
[null,null,null,null,null,null,null,null,null,null,null,null,null,null,null,null,null,null,"Johnston","Joshua (14)","Joshua (14) Johnston",null,null,"Joshua (14) Johnston"]
[null,null,null,null,null,null,null,null,null,null,null,null,null,null,null,null,null,null,"Johnston","Marnai","Marnai Johnston",null,null,"Marnai Johnston"]
[null,null,null,null,null,null,null,null,null,null,null,null,null,null,null,null,null,null,"Jones","Wayne","Wayne Jones",null,null,"Wayne Jones"]
[null,null,null,null,null,null,null,null,null,null,null,null,null,null,null,null,null,null,"Joyner","Vivian","Vivian Joyner",null,null,"Vivian Joyner"]
[null,null,null,null,null,null,null,null,null,null,null,null,null,null,null,null,null,null,"Kaplan","Robert","Robert Kaplan",null,null,"Robert Kaplan"]
[null,null,null,null,null,null,null,null,null,null,null,null,null,null,null,null,null,null,"Kearse","Mike","Mike Kearse",null,null,"Mike Kearse"]
[null,null,null,null,null,null,null,null,null,null,null,null,null,null,null,null,null,null,"Kincheloe","William","William Kincheloe",null,null,"William Kincheloe"]
[null,null,null,null,null,null,null,null,null,null,null,null,null,null,null,null,null,null,"Koss","Linda","Linda Koss",null,null,"Linda Koss"]
[null,null,null,null,null,null,null,null,null,null,null,null,null,null,null,null,null,null,"Koss","Roger A","Roger A Koss",null,null,"Roger A Koss"]
[null,null,null,null,null,null,null,null,null,null,null,null,null,null,null,null,null,null,"Kotz","Art","Art Kotz",null,null,"Art Kotz"]
[null,null,null,null,null,null,null,null,null,null,null,null,null,null,null,null,null,null,"Kreuzinger","Thomas","Thomas Kreuzinger",null,null,"Thomas Kreuzinger"]
[null,null,null,null,null,null,null,null,null,null,null,null,null,null,null,null,null,null,"Kuttner 16","Calvin","Calvin Kuttner 16",null,null,"Calvin Kuttner 16"]
[null,null,null,null,null,null,null,null,null,null,null,null,null,null,null,null,null,null,"Lackey","M Gray","M Gray Lackey",null,null,"M Gray Lackey"]
[null,null,null,null,null,null,null,null,null,null,null,null,null,null,null,null,null,null,"Lackey","Mack E","Mack E Lackey",null,null,"Mack E Lackey"]
[null,null,null,null,null,null,null,null,null,null,null,null,null,null,null,null,null,null,"Lasater","Richard T","Richard T Lasater",null,null,"Richard T Lasater"]
[null,null,null,null,null,null,null,null,null,null,null,null,null,null,null,null,null,null,"Lathrop","David D.","David D. Lathrop",null,null,"David D. Lathrop"]
[null,null,null,null,null,null,null,null,null,null,null,null,null,null,null,null,null,null,"Lindenmuth","Matt","Matt Lindenmuth",null,null,"Matt Lindenmuth"]
[null,null,null,null,null,null,null,null,null,null,null,null,null,null,null,null,null,null,"Lucas","Leon T","Leon T Lucas",null,null,"Leon T Lucas"]
[null,null,null,null,null,null,null,null,null,null,null,null,null,null,null,null,null,null,"MacLean","Michael S","Michael S MacLean",null,null,"Michael S MacLean"]
[null,null,null,null,null,null,null,null,null,null,null,null,null,null,null,null,null,null,"MacLean","Emma (2)","Emma (2) MacLean",null,null,"Emma (2) MacLean"]
[null,null,null,null,null,null,null,null,null,null,null,null,null,null,null,null,null,null,"MacLean","Lindsay (4)","Lindsay (4) MacLean",null,null,"Lindsay (4) MacLean"]
[null,null,null,null,null,null,null,null,null,null,null,null,null,null,null,null,null,null,"MacLean","Amy","Amy MacLean",null,null,"Amy MacLean"]
[null,null,null,null,null,null,null,null,null,null,null,null,null,null,null,null,null,null,"Macy","Jonathan D.","Jonathan D. Macy",null,null,"Jonathan D. Macy"]
[null,null,null,null,null,null,null,null,null,null,null,null,null,null,null,null,null,null,"Majors, Jr","Robert P","Robert P Majors, Jr",null,null,"Robert P Majors, Jr"]
[null,null,null,null,null,null,null,null,null,null,null,null,null,null,null,null,null,null,"Mangum","James W","James W Mangum",null,null,"James W Mangum"]
[null,null,null,null,null,null,null,null,null,null,null,null,null,null,null,null,null,null,"Manhard","John","John Manhard",null,null,"John Manhard"]
[null,null,null,null,null,null,null,null,null,null,null,null,null,null,null,null,null,null,"Markham","Felix","Felix Markham",null,null,"Felix Markham"]
[null,null,null,null,null,null,null,null,null,null,null,null,null,null,null,null,null,null,"Marks","Kenneth","Kenneth Marks",null,null,"Kenneth Marks"]
[null,null,null,null,null,null,null,null,null,null,null,null,null,null,null,null,null,null,"Marshall","Donald","Donald Marshall",null,null,"Donald Marshall"]
[null,null,null,null,null,null,null,null,null,null,null,null,null,null,null,null,null,null,"Martin","Logan","Logan Martin",null,null,"Logan Martin"]
[null,null,null,null,null,null,null,null,null,null,null,null,null,null,null,null,null,null,"Mattson, Jr.","Alan","Alan Mattson, Jr.",null,null,"Alan Mattson, Jr."]
[null,null,null,null,null,null,null,null,null,null,null,null,null,null,null,null,null,null,"McElwaine","Scott","Scott McElwaine",null,null,"Scott McElwaine"]
[null,null,null,null,null,null,null,null,null,null,null,null,null,null,null,null,null,null,"McGraw","Thomas","Thomas McGraw",null,null,"Thomas McGraw"]
[null,null,null,null,null,null,null,null,null,null,null,null,null,null,null,null,null,null,"McKinney","Michael","Michael McKinney",null,null,"Michael McKinney"]
[null,null,null,null,null,null,null,null,null,null,null,null,null,null,null,null,null,null,"Meade","James B","James B Meade",null,null,"James B Meade"]
[null,null,null,null,null,null,null,null,null,null,null,null,null,null,null,null,null,null,"Meredith","Jessica","Jessica Meredith",null,null,"Jessica Meredith"]
[null,null,null,null,null,null,null,null,null,null,null,null,null,null,null,null,null,null,"Meredith","Russ","Russ Meredith",null,null,"Russ Meredith"]
[null,null,null,null,null,null,null,null,null,null,null,null,null,null,null,null,null,null,"Middour","Brenda","Brenda Middour",null,null,"Brenda Middour"]
[null,null,null,null,null,null,null,null,null,null,null,null,null,null,null,null,null,null,"Middour, Jr","Robert C","Robert C Middour, Jr",null,null,"Robert C Middour, Jr"]
[null,null,null,null,null,null,null,null,null,null,null,null,null,null,null,null,null,null,"Mills","Joe","Joe Mills",null,null,"Joe Mills"]
[null,null,null,null,null,null,null,null,null,null,null,null,null,null,null,null,null,null,"Mills","Vickie","Vickie Mills",null,null,"Vickie Mills"]
[null,null,null,null,null,null,null,null,null,null,null,null,null,null,null,null,null,null,"Moody III","Charles J","Charles J Moody III",null,null,"Charles J Moody III"]
[null,null,null,null,null,null,null,null,null,null,null,null,null,null,null,null,null,null,"Morck","John F","John F Morck",null,null,"John F Morck"]
[null,null,null,null,null,null,null,null,null,null,null,null,null,null,null,null,null,null,"Morck","Debbie","Debbie Morck",null,null,"Debbie Morck"]
[null,null,null,null,null,null,null,null,null,null,null,null,null,null,null,null,null,null,"Morrison","Robert R","Robert R Morrison",null,null,"Robert R Morrison"]
[null,null,null,null,null,null,null,null,null,null,null,null,null,null,null,null,null,null,"Muller","Pam","Pam Muller",null,null,"Pam Muller"]
[null,null,null,null,null,null,null,null,null,null,null,null,null,null,null,null,null,null,"Naismith","Joseph","Joseph Naismith",null,null,"Joseph Naismith"]
[null,null,null,null,null,null,null,null,null,null,null,null,null,null,null,null,null,null,"Newton","Walter R. (Bob)","Walter R. (Bob) Newton",null,null,"Walter R. (Bob) Newton"]
[null,null,null,null,null,null,null,null,null,null,null,null,null,null,null,null,null,null,"Northcutt","Ralph W","Ralph W Northcutt",null,null,"Ralph W Northcutt"]
[null,null,null,null,null,null,null,null,null,null,null,null,null,null,null,null,null,null,"Oberklein","Dan","Dan Oberklein",null,null,"Dan Oberklein"]
[null,null,null,null,null,null,null,null,null,null,null,null,null,null,null,null,null,null,"Obermiller","Kyle","Kyle Obermiller",null,null,"Kyle Obermiller"]
[null,null,null,null,null,null,null,null,null,null,null,null,null,null,null,null,null,null,"Olsen","Dennis","Dennis Olsen",null,null,"Dennis Olsen"]
[null,null,null,null,null,null,null,null,null,null,null,null,null,null,null,null,null,null,"Olsen","Marian",{"$f":"T143&\" \"&S143","v":"Marian Olsen"},null,null,"Marian Olsen"]
[null,null,null,null,null,null,null,null,null,null,null,null,null,null,null,null,null,null,"Pace","Nicholas","Nicholas Pace",null,null,"Nicholas Pace"]
[null,null,null,null,null,null,null,null,null,null,null,null,null,null,null,null,null,null,"Parker","Carol","Carol Parker",null,null,"Carol Parker"]
[null,null,null,null,null,null,null,null,null,null,null,null,null,null,null,null,null,null,"Pate (Whitlock)","Davette","Davette Pate (Whitlock)",null,null,"Davette Pate (Whitlock)"]
[null,null,null,null,null,null,null,null,null,null,null,null,null,null,null,null,null,null,"Pate (Whitlock)","Elle (18)","Elle (18) Pate (Whitlock)",null,null,"Elle (18) Pate (Whitlock)"]
[null,null,null,null,null,null,null,null,null,null,null,null,null,null,null,null,null,null,"Pate(26)","Joey","Joey Pate(26)",null,null,"Joey Pate(26)"]
[null,null,null,null,null,null,null,null,null,null,null,null,null,null,null,null,null,null,"Payne","Scott","Scott Payne",null,null,"Scott Payne"]
[null,null,null,null,null,null,null,null,null,null,null,null,null,null,null,null,null,null,"Peterson, Jr","Stephen G","Stephen G Peterson, Jr",null,null,"Stephen G Peterson, Jr"]
[null,null,null,null,null,null,null,null,null,null,null,null,null,null,null,null,null,null,"Portzer","Jeffrey","Jeffrey Portzer",null,null,"Jeffrey Portzer"]
[null,null,null,null,null,null,null,null,null,null,null,null,null,null,null,null,null,null,"Portzet (Thomas)","Janel","Janel Portzet (Thomas)",null,null,"Janel Portzet (Thomas)"]
[null,null,null,null,null,null,null,null,null,null,null,null,null,null,null,null,null,null,"Reagan, III","James A","James A Reagan, III",null,null,"James A Reagan, III"]
[null,null,null,null,null,null,null,null,null,null,null,null,null,null,null,null,null,null,"Richman","Ted","Ted Richman",null,null,"Ted Richman"]
[null,null,null,null,null,null,null,null,null,null,null,null,null,null,null,null,null,null,"Robertson","Galen","Galen Robertson",null,null,"Galen Robertson"]
[null,null,null,null,null,null,null,null,null,null,null,null,null,null,null,null,null,null,"Robinson","David","David Robinson",null,null,"David Robinson"]
[null,null,null,null,null,null,null,null,null,null,null,null,null,null,null,null,null,null,"Root","Carol","Carol Root",null,null,"Carol Root"]
[null,null,null,null,null,null,null,null,null,null,null,null,null,null,null,null,null,null,"Rosenbaum","Eleanor","Eleanor Rosenbaum",null,null,"Eleanor Rosenbaum"]
[null,null,null,null,null,null,null,null,null,null,null,null,null,null,null,null,null,null,"Roth (67)","Tom (67)","Tom (67) Roth (67)",null,null,"Tom (67) Roth (67)"]
[null,null,null,null,null,null,null,null,null,null,null,null,null,null,null,null,null,null,"Roule","Robert","Robert Roule",null,null,"Robert Roule"]
[null,null,null,null,null,null,null,null,null,null,null,null,null,null,null,null,null,null,"Roule","Barbara","Barbara Roule",null,null,"Barbara Roule"]
[null,null,null,null,null,null,null,null,null,null,null,null,null,null,null,null,null,null,"Royal","Wes","Wes Royal",null,null,"Wes Royal"]
[null,null,null,null,null,null,null,null,null,null,null,null,null,null,null,null,null,null,"Royal","Elizabeth","Elizabeth Royal",null,null,"Elizabeth Royal"]
[null,null,null,null,null,null,null,null,null,null,null,null,null,null,null,null,null,null,"Rueckert","Bill","Bill Rueckert",null,null,"Bill Rueckert"]
[null,null,null,null,null,null,null,null,null,null,null,null,null,null,null,null,null,null,"Sadler","Will","Will Sadler",null,null,"Will Sadler"]
[null,null,null,null,null,null,null,null,null,null,null,null,null,null,null,null,null,null,"Saltsgaver (18)","Daniel","Daniel Saltsgaver (18)",null,null,"Daniel Saltsgaver (18)"]
[null,null,null,null,null,null,null,null,null,null,null,null,null,null,null,null,null,null,"Saltsgaver (21)","Nick","Nick Saltsgaver (21)",null,null,"Nick Saltsgaver (21)"]
[null,null,null,null,null,null,null,null,null,null,null,null,null,null,null,null,null,null,"Seymour","Daniel","Daniel Seymour",null,null,"Daniel Seymour"]
[null,null,null,null,null,null,null,null,null,null,null,null,null,null,null,null,null,null,"Seymour","Kathy","Kathy Seymour",null,null,"Kathy Seymour"]
[null,null,null,null,null,null,null,null,null,null,null,null,null,null,null,null,null,null,"Shanklin","Jule","Jule Shanklin",null,null,"Jule Shanklin"]
[null,null,null,null,null,null,null,null,null,null,null,null,null,null,null,null,null,null,"Shimpi","Aidam","Aidam Shimpi",null,null,"Aidam Shimpi"]
[null,null,null,null,null,null,null,null,null,null,null,null,null,null,null,null,null,null,"Siegl","Brendan","Brendan Siegl",null,null,"Brendan Siegl"]
[null,null,null,null,null,null,null,null,null,null,null,null,null,null,null,null,null,null,"Siegl","Adelaide","Adelaide Siegl",null,null,"Adelaide Siegl"]
[null,null,null,null,null,null,null,null,null,null,null,null,null,null,null,null,null,null,"Siegl","Chris  ","Chris   Siegl",null,null,"Chris   Siegl"]
[null,null,null,null,null,null,null,null,null,null,null,null,null,null,null,null,null,null,"Slaughter","Joseph B","Joseph B Slaughter",null,null,"Joseph B Slaughter"]
[null,null,null,null,null,null,null,null,null,null,null,null,null,null,null,null,null,null,"Slaughter","Tammy Krause","Tammy Krause Slaughter",null,null,"Tammy Krause Slaughter"]
[null,null,null,null,null,null,null,null,null,null,null,null,null,null,null,null,null,null,"Slugg","Pete","Pete Slugg",null,null,"Pete Slugg"]
[null,null,null,null,null,null,null,null,null,null,null,null,null,null,null,null,null,null,"Smith","Scott T","Scott T Smith",null,null,"Scott T Smith"]
[null,null,null,null,null,null,null,null,null,null,null,null,null,null,null,null,null,null,"Speight","David","David Speight",null,null,"David Speight"]
[null,null,null,null,null,null,null,null,null,null,null,null,null,null,null,null,null,null,"Speight","Judy","Judy Speight",null,null,"Judy Speight"]
[null,null,null,null,null,null,null,null,null,null,null,null,null,null,null,null,null,null,"Staller","Paul","Paul Staller",null,null,"Paul Staller"]
[null,null,null,null,null,null,null,null,null,null,null,null,null,null,null,null,null,null,"Stevens","Joseph B","Joseph B Stevens",null,null,"Joseph B Stevens"]
[null,null,null,null,null,null,null,null,null,null,null,null,null,null,null,null,null,null,"Stirewalt","Charles","Charles Stirewalt",null,null,"Charles Stirewalt"]
[null,null,null,null,null,null,null,null,null,null,null,null,null,null,null,null,null,null,"Stocum","Thomas","Thomas Stocum",null,null,"Thomas Stocum"]
[null,null,null,null,null,null,null,null,null,null,null,null,null,null,null,null,null,null,"Sullivan","Luke","Luke Sullivan",null,null,"Luke Sullivan"]
[null,null,null,null,null,null,null,null,null,null,null,null,null,null,null,null,null,null,"Sumerell","Jimmy","Jimmy Sumerell",null,null,"Jimmy Sumerell"]
[null,null,null,null,null,null,null,null,null,null,null,null,null,null,null,null,null,null,"Szpunar","Mike","Mike Szpunar",null,null,"Mike Szpunar"]
[null,null,null,null,null,null,null,null,null,null,null,null,null,null,null,null,null,null,"Taylor","Eddie","Eddie Taylor",null,null,"Eddie Taylor"]
[null,null,null,null,null,null,null,null,null,null,null,null,null,null,null,null,null,null,"Tilley","Scott","Scott Tilley",null,null,"Scott Tilley"]
[null,null,null,null,null,null,null,null,null,null,null,null,null,null,null,null,null,null,"Tilley","Christopher H","Christopher H Tilley",null,null,"Christopher H Tilley"]
[null,null,null,null,null,null,null,null,null,null,null,null,null,null,null,null,null,null,"Tilley","Mikayla","Mikayla Tilley",null,null,"Mikayla Tilley"]
[null,null,null,null,null,null,null,null,null,null,null,null,null,null,null,null,null,null,"Traylor","Glenn O","Glenn O Traylor",null,null,"Glenn O Traylor"]
[null,null,null,null,null,null,null,null,null,null,null,null,null,null,null,null,null,null,"Traylor","Janet ","Janet  Traylor",null,null,"Janet  Traylor"]
[null,null,null,null,null,null,null,null,null,null,null,null,null,null,null,null,null,null,"Tredway","John","John Tredway",null,null,"John Tredway"]
[null,null,null,null,null,null,null,null,null,null,null,null,null,null,null,null,null,null,"Tredway","Suzanne","Suzanne Tredway",null,null,"Suzanne Tredway"]
[null,null,null,null,null,null,null,null,null,null,null,null,null,null,null,null,null,null,"Vann","John","John Vann",null,null,"John Vann"]
[null,null,null,null,null,null,null,null,null,null,null,null,null,null,null,null,null,null,"Vargas II","Jose","Jose Vargas II",null,null,"Jose Vargas II"]
[null,null,null,null,null,null,null,null,null,null,null,null,null,null,null,null,null,null,"Varney","R. Victor","R. Victor Varney",null,null,"R. Victor Varney"]
[null,null,null,null,null,null,null,null,null,null,null,null,null,null,null,null,null,null,"Walkins","Deborah","Deborah Walkins",null,null,"Deborah Walkins"]
[null,null,null,null,null,null,null,null,null,null,null,null,null,null,null,null,null,null,"Walkins","Gary","Gary Walkins",null,null,"Gary Walkins"]
[null,null,null,null,null,null,null,null,null,null,null,null,null,null,null,null,null,null,"Ward","Cliff","Cliff Ward",null,null,"Cliff Ward"]
[null,null,null,null,null,null,null,null,null,null,null,null,null,null,null,null,null,null,"Ward","Cooper","Cooper Ward",null,null,"Cooper Ward"]
[null,null,null,null,null,null,null,null,null,null,null,null,null,null,null,null,null,null,"Weeks","Joanthan","Joanthan Weeks",null,null,"Joanthan Weeks"]
[null,null,null,null,null,null,null,null,null,null,null,null,null,null,null,null,null,null,"West","Sranley","Sranley West",null,null,"Sranley West"]
[null,null,null,null,null,null,null,null,null,null,null,null,null,null,null,null,null,null,"Whitten","Jim","Jim Whitten",null,null,"Jim Whitten"]
[null,null,null,null,null,null,null,null,null,null,null,null,null,null,null,null,null,null,"Wilkins","Linda","Linda Wilkins",null,null,"Linda Wilkins"]
[null,null,null,null,null,null,null,null,null,null,null,null,null,null,null,null,null,null,"Wilkins","Percy",{"$f":"T207&\" \"&S207","v":"Percy Wilkins"},null,null,"Percy Wilkins"]
[null,null,null,null,null,null,null,null,null,null,null,null,null,null,null,null,null,null,"Wilkus","Brandt","Brandt Wilkus",null,null,"Brandt Wilkus"]
[null,null,null,null,null,null,null,null,null,null,null,null,null,null,null,null,null,null,"Winchell","Dennis","Dennis Winchell",null,null,"Dennis Winchell"]
[null,null,null,null,null,null,null,null,null,null,null,null,null,null,null,null,null,null,"Woodard","James","James Woodard",null,null,"James Woodard"]
[null,null,null,null,null,null,null,null,null,null,null,null,null,null,null,null,null,null,"Workman","Jimmy","Jimmy Workman",null,null,"Jimmy Workman"]
[null,null,null,null,null,null,null,null,null,null,null,null,null,null,null,null,null,null,"Workman","Martha","Martha Workman",null,null,"Martha Workman"]
[null,null,null,null,null,null,null,null,null,null,null,null,null,null,null,null,null,null,"Wright ","John","John Wright ",null,null,"John Wright "]
[null,null,null,null,null,null,null,null,null,null,null,null,null,null,null,null,null,null,"Williams","Brenda","Brenda Williams",null,null,"Brenda Williams"]
[null,null,null,null,null,null,null,null,null,null,null,null,null,null,null,null,null,null,"Williams","Wallace W","Wallace W Williams",null,null,"Wallace W Williams"]
[null,null,null,null,null,null,null,null,null,null,null,null,null,null,null,null,null,null,null,null," ",null,null," "]
[null,null,null,null,null,null,null,null,null,null,null,null,null,null,null,null,null,null,null,null," ",null,null," "]

{"sheet":"Revisions","index":9,"n_rows":6,"n_cols":4,"rows_kept":6,"cut":false,"hidden":false,"merged":[]}
[]
[]
[null,null,"2023 Added the following features:"]
[null,null,"1- ","Automatically added check marks at yard limits   12/18/22"]
[null,null,"2- ","Automatically added 0s to passenger counts in 308 and Other 12/19/22"]
[null,null,"3-","Added am/pm to rider ship.  Auto insert Sche times and triain numbers  3/10/23"]

{"sheet":"Old 2023_Trains","index":10,"n_rows":57,"n_cols":13,"rows_kept":57,"cut":false,"hidden":false,"merged":[]}
[]
[null," ","      2023 Schedule and Ridership"]
[null,null,null,null,null,null,null,null,null,"Total Ridership YTD",null,{"$f":"SUM(K8:K58)","v":1},{"$f":"TODAY()","v":"2023-03-19"}]
[]
[null,"Index","Date",null," Trains",1,2,3,4,5,"Riders","Average ","Theme "]
[]
[]
[null,1,"2023-02-01",{"$f":"IF(C8=0,\" \",TEXT(C8,\"ddd\"))","v":"Wed"},1,"10:30",null,null,null,null,1,null,"Photo shoot"]
[null,2,"2023-04-01","Sat",5,"9:30","11:00","12:30","2:00","3:30",null,null,"Hop into Spring  1"]
[null,3,"2023-04-02","Sun",5,"9:30","11:00","12:30","2:00","3:30",null,null,"Hop into Spring  2"]
[null,4,"2023-04-12","Wed",1,"10:30",null,null,null,null,null,null,"Group ride"]
[null,5,"2023-04-15","Sat",4,"11:00","12:00","1:00","2:00",null,null,null,"Operate-A-Loco"]
[null,6,"2023-04-21","Fri",1,"10:30",null,null,null,null,null,null,"Group ride"]
[null,7,"2023-05-06","Sat",4,"1:00","2:30","4:00","5:30",null,null,null,"Brew & Choo"]
[null,8,"2023-05-12","Fri",1,"10:30",null,null,null,null,null,null,"Group ride"]
[null,9,"2023-05-13","Sat",4,"11:00","12:00","1:00","2:00",null,null,null,"Operate-A-Loco"]
[null,10,"2023-05-17","Wed",1,"10:30",null,null,null,null,null,null,"Group ride"]
[null,11,"2023-05-20","Sat",1,"TBD",null,null,null,null,null,null,"Fuel train"]
[null,12,"2023-05-21","Sun",3,"1:00","2:30","4:00",null,null,null,null,"Slow Down Sunday"]
[null,13,"2023-05-26","Fri",1,"10:30",null,null,null,null,null,null,"Group ride"]
[null,14,"2023-06-03","Sat",4,"1:00","2:30","4:00","5:30",null,null,null,"Brew & Choo"]
[null,15,"2023-06-09","Fri",1,"10:30",null,null,null,null,null,null,"Group ride"]
[null,16,"2023-06-11","Sun",3,"1:00","2:30","4:00",null,null,null,null,"Slow Down Sunday"]
[null,17,"2023-06-14","Wed",1,"10:30",null,null,null,null,null,null,"Group ride"]
[null,18,"2023-06-17","Sat",4,"11:00","12:00","1:00","2:00",null,null,null,"Operate-A-Loco"]
[null,19,"2023-06-18","Sun",4,"11:00","12:00","1:00","2:00",null,null,null,"Operate-A-Loco"]
[null,20,"2023-06-23","Fri",1,"10:30",null,null,null,null,null,null,"Group ride"]
[null,21,"2023-07-01","Sat",4,"1:00","2:30","4:00","5:30",null,null,null,"Brew & Choo"]
[null,22,"2023-07-14",{"$f":"IF(C29=0,\" \",TEXT(C29,\"ddd\"))","v":"Fri"},1,"10:30",null,null,null,null,null,null,"Group ride"]
[null,23,"2023-07-15","Sat",4,"11:00","12:00","1:00","2:00",null,null,null,"Operate-A-Loco"]
[null,24,"2023-07-19",{"$f":"IF(C31=0,\" \",TEXT(C31,\"ddd\"))","v":"Wed"},1,"10:30",null,null,null,null,null,null,"Group ride"]
[null,25,"2023-07-23",{"$f":"IF(C32=0,\" \",TEXT(C32,\"ddd\"))","v":"Sun"},3,"1:00","2:30","4:00",null,null,null,null,"Slow Down Sunday"]
[null,26,"2023-07-28",{"$f":"IF(C33=0,\" \",TEXT(C33,\"ddd\"))","v":"Fri"},"1","10:30",null,null,null,null,null,null,"Group ride"]
[null,27,"2023-08-05","Sat",4,"1:00","2:30","4:00","5:30",null,null,null,"Brew & Choo"]
[null,28,"2023-08-11","Fri",1,"10:30",null,null,null,null,null,null,"Group ride"]
[null,29,"2023-08-16","Wed",1,"10:30",null,null,null,null,null,null,"Group ride"]
[null,30,"2023-08-19","Sat",4,"11:00","12:00","1:00","2:00",null,null,null,"Operate-A-Loco"]
[null,31,"2023-08-25","Fri",1,"10:30",null,null,null,null,null,null,"Group ride"]
[null,32,"2023-09-08","Fri",1,"10:30",null,null,null,null,null,null,"Group ride"]
[null,33,"2023-09-09","Sat",4,"1:00","2:30","4:00","5:30",null,null,null,"Brew & Choo"]
[null,34,"2023-09-13","Wed",1,"10:30",null,null,null,null,null,null,"Group ride"]
[null,35,"2023-09-16","Sat",4,"11:00","12:00","1:00","2:00",null,null,null,"Operate-A-Loco"]
[null,36,"2023-09-17","Sun",3,"1:00","2:30","4:00",null,null,null,null,"Slow Down Sunday"]
[null,37,"2023-09-22","Fri",1,"10:30",null,null,null,null,null,null,"Group ride"]
[null,38,"2023-10-14","Sat",5,"2:15","3:30","4:45","6:30","7:45",null,null,"Track or Treat Halloween  1"]
[null,39,"2023-10-21","Sat",5,"2:15","3:30","4:45","6:30","7:45",null,null,"Track or Treat Halloween  2"]
[null,40,"2023-10-27","Fri",3,"5:00","6:30","7:45",null,null,null,null,"Track or Treat Halloween  3"]
[null,41,"2023-10-28","Sat",5,"2:15","3:30","4:45","6:30","7:45",null,null,"Track or Treat Halloween  4"]
[null,42,"2023-11-08","Wed",1,"10:30",null,null,null,null,null,null,"Group ride"]
[null,43,"2023-11-11","Sat",4,"11:30","1:00","2:30","4:00",null,null,null,"Brew & Choo"]
[null,44,"2023-11-12","Sun",4,"11:00","12:00","1:00","2:00",null,null,null,"Operate-A-Loco"]
[null,45,"2023-11-17","Fri",1,"10:30",null,null,null,null,null,null,"Group ride"]
[null,46,"2023-12-02","Sat",5,"9:30","11:00","12:30","2:00","3:30",null,null,"Santa Trains  1"]
[null,47,"2023-12-03","Sun",5,"9:30","11:00","12:30","2:00","3:30",null,null,"Santa Trains  2"]
[null,48,"2023-12-09","Sat",5,"9:30","11:00","12:30","2:00","3:30",null,null,"Santa Trains  3"]
[null,49,"2023-12-10","Sun",5,"9:30","11:00","12:30","2:00","3:30",null,null,"Santa Trains  4"]
[null,50,"2023-12-16","Sat",5,"9:30","11:00","12:30","2:00","3:30",null,null,"Santa Trains  5"]

{"sheet":"Duplicate Master","index":11,"n_rows":52,"n_cols":13,"rows_kept":52,"cut":false,"hidden":false,"merged":[[0,1,0,12],[1,7,1,9]]}
[null,"New Hope Valley Railway"]
[null,"TIMETABLE 7",null,null,null,"DATE:",null,null,null,null,null,"R","Bonsal, NC"]
[]
[null,null,null,null,null,null,null,{"$f":"IF(H2=0,\" \",VLOOKUP(H2,'2023_Trains'!C8:M59,11,))","v":" "}]
[null,"PART 1: PASSENGER COUNT"]
[null,"SCHEDULED TIME",null,{"$f":"IF($H$2=0,\" \",IF(VLOOKUP($H$2,'2023_Trains'!$C$7:$M$60,4)=0,\" \",VLOOKUP($H$2,'2023_Trains'!$C$7:$M$60,4,FALSE)))","v":" "},null,{"$f":"IF($H$2=0,\" \",IF(VLOOKUP($H$2,'2023_Trains'!$C$7:$M$60,5)=0,\" \",VLOOKUP($H$2,'2023_Trains'!$C$7:$M$60,5,FALSE)))","v":" "},null,{"$f":"IF($H$2=0,\" \",IF(VLOOKUP($H$2,'2023_Trains'!$C$7:$M$60,6)=0,\" \",VLOOKUP($H$2,'2023_Trains'!$C$7:$M$60,6,FALSE)))","v":" "},null,{"$f":"IF($H$2=0,\" \",IF(VLOOKUP($H$2,'2023_Trains'!$C$7:$M$60,7)=0,\" \",VLOOKUP($H$2,'2023_Trains'!$C$7:$M$60,7,FALSE)))","v":" "},null,{"$f":"IF($H$2=0,\" \",IF(VLOOKUP($H$2,'2023_Trains'!$C$7:$M$60,8)=0,\" \",VLOOKUP($H$2,'2023_Trains'!$C$7:$M$60,8,FALSE)))","v":" "}]
[null,"TRAIN NUMBER",null,{"$f":"IF(D6=\" \",\" \",VALUE(D6))","v":" "},null,{"$f":"IF(F6=\" \",\" \",VALUE(F6))","v":" "},null,{"$f":"IF(H6=\" \",\" \",VALUE(H6))","v":" "},null," ",null," "]
[null,"ENGINE:"]
[]
[null,"MP 0.1 - Depart Northbound",null,{"$f":"IF(C10=0,\" \",TIMEVALUE(LEFT(C10,2)&\":\"&MID(C10,3,2)&\":\"&RIGHT(C10,2)))","v":" "},null," ",null,{"$f":"IF(G10=0,\" \",TIMEVALUE(LEFT(G10,2)&\":\"&MID(G10,3,2)&\":\"&RIGHT(G10,2)))","v":" "},null,{"$f":"IF(I10=0,\" \",TIMEVALUE(LEFT(I10,2)&\":\"&MID(I10,3,2)&\":\"&RIGHT(I10,2)))","v":" "},null,{"$f":"IF(K10=0,\" \",TIMEVALUE(LEFT(K10,2)&\":\"&MID(K10,3,2)&\":\"&RIGHT(K10,2)))","v":" "}]
[null,"Yard Limits*"]
[null,"MP 2.1 - Midway Northbound",null,{"$f":"IF(C12=0,\" \",TIMEVALUE(LEFT(C12,2)&\":\"&MID(C12,3,2)&\":\"&RIGHT(C12,2)))","v":" "},null,{"$f":"IF(E12=0,\" \",TIMEVALUE(LEFT(E12,2)&\":\"&MID(E12,3,2)&\":\"&RIGHT(E12,2)))","v":" "},null,{"$f":"IF(G12=0,\" \",TIMEVALUE(LEFT(G12,2)&\":\"&MID(G12,3,2)&\":\"&RIGHT(G12,2)))","v":" "},null,{"$f":"IF(I12=0,\" \",TIMEVALUE(LEFT(I12,2)&\":\"&MID(I12,3,2)&\":\"&RIGHT(I12,2)))","v":" "},null,{"$f":"IF(K12=0,\" \",TIMEVALUE(LEFT(K12,2)&\":\"&MID(K12,3,2)&\":\"&RIGHT(K12,2)))","v":" "}]
[null,"MP 4.1 - Arr.  New Hill",null,{"$f":"IF(C13=0,\" \",TIMEVALUE(LEFT(C13,2)&\":\"&MID(C13,3,2)&\":\"&RIGHT(C13,2)))","v":" "},null,{"$f":"IF(E13=0,\" \",TIMEVALUE(LEFT(E13,2)&\":\"&MID(E13,3,2)&\":\"&RIGHT(E13,2)))","v":" "},null,{"$f":"IF(G13=0,\" \",TIMEVALUE(LEFT(G13,2)&\":\"&MID(G13,3,2)&\":\"&RIGHT(G13,2)))","v":" "},null,{"$f":"IF(I13=0,\" \",TIMEVALUE(LEFT(I13,2)&\":\"&MID(I13,3,2)&\":\"&RIGHT(I13,2)))","v":" "},null,{"$f":"IF(K13=0,\" \",TIMEVALUE(LEFT(K13,2)&\":\"&MID(K13,3,2)&\":\"&RIGHT(K13,2)))","v":" "}," "]
[null,"MP 4.1- Lv. New Hill - Southbound",null,{"$f":"IF(C14=0,\" \",TIMEVALUE(LEFT(C14,2)&\":\"&MID(C14,3,2)&\":\"&RIGHT(C14,2)))","v":" "},null,{"$f":"IF(E14=0,\" \",TIMEVALUE(LEFT(E14,2)&\":\"&MID(E14,3,2)&\":\"&RIGHT(E14,2)))","v":" "},null,{"$f":"IF(G14=0,\" \",TIMEVALUE(LEFT(G14,2)&\":\"&MID(G14,3,2)&\":\"&RIGHT(G14,2)))","v":" "},null,{"$f":"IF(I14=0,\" \",TIMEVALUE(LEFT(I14,2)&\":\"&MID(I14,3,2)&\":\"&RIGHT(I14,2)))","v":" "},null,{"$f":"IF(K14=0,\" \",TIMEVALUE(LEFT(K14,2)&\":\"&MID(K14,3,2)&\":\"&RIGHT(K14,2)))","v":" "}]
[null,"MP 2.1 - Midway Southbound",null," ",null," ",null," ",null," ",null," "]
[null,"Yard Limits*",null," ",null," ",null," ",null," ",null," "]
[null,"MP 0.1 - ON SPOT",null," ",null," ",null," ",null," ",null," "]
[null,"NOTE:",null,{"$f":"IF(C17=0,\" \",$L$2)","v":" "},null,{"$f":"IF(E17=0,\" \",$L$2)","v":" "},null,{"$f":"IF(G17=0,\" \",$L$2)","v":" "},null,{"$f":"IF(I17=0,\" \",$L$2)","v":" "},null,{"$f":"IF(K17=0,\" \",$L$2)","v":" "}]
[null,null,null," ",null," ",null,{"$f":"IF(G19=0,\" \",TIMEVALUE(LEFT(G19,2)&\":\"&MID(G19,3,2)&\":\"&RIGHT(G19,2)))","v":" "},null,{"$f":"IF(I19=0,\" \",TIMEVALUE(LEFT(I19,2)&\":\"&MID(I19,3,2)&\":\"&RIGHT(I19,2)))","v":" "},null," "]
[null,100]
[null,101]
[null,200]
[null,201]
[null,308]
[null,"Cab",null,{"$f":"IF(D8=0,\" \",\"0\")","v":" "},null,{"$f":"IF(F8=0,\" \",\"0\")","v":" "},null,{"$f":"IF(H8=0,\" \",\"0\")","v":" "},null,{"$f":"IF(J8=0,\" \",\"0\")","v":" "},null,{"$f":"IF(L8=0,\" \",\"0\")","v":" "}]
[null,"OTHER",null,{"$f":"IF(D8=0,\" \",\"0\")","v":" "},null,{"$f":"IF(F8=0,\" \",\"0\")","v":" "},null,{"$f":"IF(H8=0,\" \",\"0\")","v":" "},null,{"$f":"IF(J8=0,\" \",\"0\")","v":" "},null,{"$f":"IF(L8=0,\" \",\"0\")","v":" "}]
[null,"TOTAL PER TRAIN",null,{"$f":"SUM(D20:D26)","v":0},null,{"$f":"SUM(F20:F26)","v":0},null,{"$f":"SUM(H20:H26)","v":0},null,{"$f":"SUM(J20:J26)","v":0},null,{"$f":"SUM(L20:L26)","v":0}]
[null,"RUNNING TOTAL",null,{"$f":"D27","v":0},null,{"$f":"D28+F27","v":0},null,{"$f":"F28+H27","v":0},null,{"$f":"J27+H28","v":0},null,{"$f":"L27+J28","v":0}]
[null,"ADVANCE SALES"]
[null,"PROMOTION SALES",null,null,null,null,null,null,null,null,null,null,"↓Check Names↓"]
[null,null,null,null,null,null,null,null,null,null,null,"FRA 6180-55 TOTAL:"]
[null,null,null,null,null,null,null,null,null,null,null,"(Total with other Passenger Counts and enter on BOX 17)"]
[null,"CREW:",null,"(FRA REQUIRED)"]
[null,"Dispatcher:  "]
[null,"Engineer:  "]
[null,"Conductor"]
[]
[null,"Signal Operator:  "]
[null,"Head Brakeman:  "]
[null,"Rear Brakeman"]
[null,"Actor Drop off/Pick up Engineer(s):"]
[]
[null,"PART 2:",null,null,null,null,null,null,null,"Train Miles"]
[null,"FRA PASSENGER MILES*",null,null,null,null,null,"FRA 6180-55:",null,{"$f":"M29*8","v":0},null,"(Total with other Passenger Miles and enter on BOX 16)"]
[null,"FRA PASSENGER TRAIN MILES*",null,"Number of Trains: ",null,null,null,"FRA 6180-55:",null,{"$f":"F46*8","v":0},null,"(Total with other train miles and enter on BOX 12)"]
[null,"* Note: 8 miles used for each trip"]
[]
[null,"PART 3:"]
[null,"WEATHER: (FRA REQUIRED)"]
[null,"Temperature (FRA REQUIRED)"]
[null,"(IF NEEDED)"]
[null,"REMARKS:"]

{"sheet":"Old Master","index":12,"n_rows":52,"n_cols":14,"rows_kept":52,"cut":false,"hidden":false,"merged":[[0,1,0,12],[1,7,1,9]]}
[null,"New Hope Valley Railway"]
[null,"TIMETABLE 7",null,null,null,"DATE:",null,null,null,null,null,"R","Bonsal, NC"]
[]
[null,null,null,null,null,null,null,{"$f":"IF(H2=0,\" \",VLOOKUP(H2,'Old 2023_Trains'!C8:M59,11))","v":" "}]
[null,"PART 1: PASSENGER COUNT"]
[null,"SCHEDULED TIME",null,{"$f":"IF(D7=0,\" \",TIMEVALUE(LEFT(D7,2)&\":\"&MID(D7,3,2)&\":\"&RIGHT(D7,2)))","v":" "},null,{"$f":"IF(F7=0,\" \",TIMEVALUE(LEFT(F7,2)&\":\"&MID(F7,3,2)&\":\"&RIGHT(F7,2)))","v":" "},null,{"$f":"IF(H7=0,\" \",TIMEVALUE(LEFT(H7,2)&\":\"&MID(H7,3,2)&\":\"&RIGHT(H7,2)))","v":" "},null,{"$f":"IF(J7=0,\" \",TIMEVALUE(LEFT(J7,2)&\":\"&MID(J7,3,2)&\":\"&RIGHT(J7,2)))","v":" "},null,{"$f":"IF(L7=0,\" \",TIMEVALUE(LEFT(L7,2)&\":\"&MID(L7,3,2)&\":\"&RIGHT(L7,2)))","v":" "}]
[null,"TRAIN NUMBER"]
[null,"ENGINE:"]
[]
[null,"MP 0.1 - Depart Northbound",null,{"$f":"IF(C10=0,\" \",TIMEVALUE(LEFT(C10,2)&\":\"&MID(C10,3,2)&\":\"&RIGHT(C10,2)))","v":" "},null,{"$f":"IF(E10=0,\" \",TIMEVALUE(LEFT(E10,2)&\":\"&MID(E10,3,2)&\":\"&RIGHT(E10,2)))","v":" "},null,{"$f":"IF(G10=0,\" \",TIMEVALUE(LEFT(G10,2)&\":\"&MID(G10,3,2)&\":\"&RIGHT(G10,2)))","v":" "},null,{"$f":"IF(I10=0,\" \",TIMEVALUE(LEFT(I10,2)&\":\"&MID(I10,3,2)&\":\"&RIGHT(I10,2)))","v":" "},null,{"$f":"IF(K10=0,\" \",TIMEVALUE(LEFT(K10,2)&\":\"&MID(K10,3,2)&\":\"&RIGHT(K10,2)))","v":" "}]
[null,"Yard Limits*",null,{"$f":"IF(C10=0,\" \",$L$2)","v":" "},null,{"$f":"IF(E10=0,\" \",$L$2)","v":" "},null,{"$f":"IF(G10=0,\" \",$L$2)","v":" "},null,{"$f":"IF(I10=0,\" \",$L$2)","v":" "},null,{"$f":"IF(K10=0,\" \",$L$2)","v":" "}]
[null,"MP 2.1 - Midway Northbound",null,{"$f":"IF(C12=0,\" \",TIMEVALUE(LEFT(C12,2)&\":\"&MID(C12,3,2)&\":\"&RIGHT(C12,2)))","v":" "},null,{"$f":"IF(E12=0,\" \",TIMEVALUE(LEFT(E12,2)&\":\"&MID(E12,3,2)&\":\"&RIGHT(E12,2)))","v":" "},null,{"$f":"IF(G12=0,\" \",TIMEVALUE(LEFT(G12,2)&\":\"&MID(G12,3,2)&\":\"&RIGHT(G12,2)))","v":" "},null,{"$f":"IF(I12=0,\" \",TIMEVALUE(LEFT(I12,2)&\":\"&MID(I12,3,2)&\":\"&RIGHT(I12,2)))","v":" "},null,{"$f":"IF(K12=0,\" \",TIMEVALUE(LEFT(K12,2)&\":\"&MID(K12,3,2)&\":\"&RIGHT(K12,2)))","v":" "}]
[null,"MP 4.1 - Arr.  New Hill",null," ",null," ",null,{"$f":"IF(G13=0,\" \",TIMEVALUE(LEFT(G13,2)&\":\"&MID(G13,3,2)&\":\"&RIGHT(G13,2)))","v":" "},null,{"$f":"IF(I13=0,\" \",TIMEVALUE(LEFT(I13,2)&\":\"&MID(I13,3,2)&\":\"&RIGHT(I13,2)))","v":" "},null,{"$f":"IF(K13=0,\" \",TIMEVALUE(LEFT(K13,2)&\":\"&MID(K13,3,2)&\":\"&RIGHT(K13,2)))","v":" "}," "]
[null,"MP 4.1- Lv. New Hill - Southbound",null," ",null," ",null,{"$f":"IF(G14=0,\" \",TIMEVALUE(LEFT(G14,2)&\":\"&MID(G14,3,2)&\":\"&RIGHT(G14,2)))","v":" "},null,{"$f":"IF(I14=0,\" \",TIMEVALUE(LEFT(I14,2)&\":\"&MID(I14,3,2)&\":\"&RIGHT(I14,2)))","v":" "},null,{"$f":"IF(K14=0,\" \",TIMEVALUE(LEFT(K14,2)&\":\"&MID(K14,3,2)&\":\"&RIGHT(K14,2)))","v":" "}]
[null,"MP 2.1 - Midway Southbound",null," ",null," ",null,{"$f":"IF(G15=0,\" \",TIMEVALUE(LEFT(G15,2)&\":\"&MID(G15,3,2)&\":\"&RIGHT(G15,2)))","v":" "},null,{"$f":"IF(I15=0,\" \",TIMEVALUE(LEFT(I15,2)&\":\"&MID(I15,3,2)&\":\"&RIGHT(I15,2)))","v":" "},null,{"$f":"IF(K15=0,\" \",TIMEVALUE(LEFT(K15,2)&\":\"&MID(K15,3,2)&\":\"&RIGHT(K15,2)))","v":" "}]
[null,"Yard Limits*",null,{"$f":"IF(C15=0,\" \",$L$2)","v":" "},null,{"$f":"IF(E15=0,\" \",$L$2)","v":" "},null,{"$f":"IF(G15=0,\" \",$L$2)","v":" "},null,{"$f":"IF(I15=0,\" \",$L$2)","v":" "},null,{"$f":"IF(K15=0,\" \",$L$2)","v":" "}]
[null,"MP 0.1 - ON SPOT",null," ",null," ",null,{"$f":"IF(G17=0,\" \",TIMEVALUE(LEFT(G17,2)&\":\"&MID(G17,3,2)&\":\"&RIGHT(G17,2)))","v":" "},null,{"$f":"IF(I17=0,\" \",TIMEVALUE(LEFT(I17,2)&\":\"&MID(I17,3,2)&\":\"&RIGHT(I17,2)))","v":" "},null," ",null,"`"]
[null,"NOTE:",null,"* = CHECK MARK ONLY"]
[null,null,null,null,null,null,null,"PASSENGER COUNTS"]
[null,100]
[null,101]
[null,200]
[null,201]
[null,308]
[null,"Cab",null,{"$f":"IF(D8=0,\" \",\"0\")","v":" "},null,{"$f":"IF(F8=0,\" \",\"0\")","v":" "},null,{"$f":"IF(H8=0,\" \",\"0\")","v":" "},null,{"$f":"IF(J8=0,\" \",\"0\")","v":" "},null,{"$f":"IF(L8=0,\" \",\"0\")","v":" "}]
[null,"OTHER",null,{"$f":"IF(D8=0,\" \",\"0\")","v":" "},null,{"$f":"IF(F8=0,\" \",\"0\")","v":" "},null,{"$f":"IF(H8=0,\" \",\"0\")","v":" "},null,{"$f":"IF(J8=0,\" \",\"0\")","v":" "},null,{"$f":"IF(L8=0,\" \",\"0\")","v":" "}]
[null,"TOTAL PER TRAIN",null,{"$f":"SUM(D20:D26)","v":0},null,{"$f":"SUM(F20:F26)","v":0},null,{"$f":"SUM(H20:H26)","v":0},null,{"$f":"SUM(J20:J26)","v":0},null,{"$f":"SUM(L20:L26)","v":0}]
[null,"RUNNING TOTAL",null,{"$f":"D27","v":0},null,{"$f":"D28+F27","v":0},null,{"$f":"F28+H27","v":0},null,{"$f":"J27+H28","v":0},null,{"$f":"L27+J28","v":0}]
[null,"ADVANCE SALES"]
[null,"PROMOTION SALES",null,null,null,null,null,null,null,null,null,null,"↓Check Names↓"]
[null,null,null,null,null,null,null,null,null,null,null,"FRA 6180-55 TOTAL:"]
[null,null,null,null,null,null,null,null,null,null,null,"(Total with other Passenger Counts and enter on BOX 17)"]
[null,"CREW:",null,"(FRA REQUIRED)"]
[null,"Dispatcher:  "]
[null,"Engineer:  "]
[null,"Conductor"]
[]
[null,"Signal Operator:  "]
[null,"Head Brakeman:  "]
[null,"Rear Brakeman"]
[null,"Actor Drop off/Pick up Engineer(s):"]
[]
[null,"PART 2:",null,null,null,null,null,null,null,"Train Miles"]
[null,"FRA PASSENGER MILES*",null,null,null,null,null,"FRA 6180-55:",null,{"$f":"M29*8","v":0},null,"(Total with other Passenger Miles and enter on BOX 16)"]
[null,"FRA PASSENGER TRAIN MILES*",null,"Number of Trains: ",null,null,null,"FRA 6180-55:",null,{"$f":"F46*8","v":0},null,"(Total with other train miles and enter on BOX 12)"]
[null,"* Note: 8 miles used for each trip"]
[]
[null,"PART 3:"]
[null,"WEATHER: (FRA REQUIRED)"]
[null,"Temperature (FRA REQUIRED)"]
[null,"(IF NEEDED)"]
[null,"REMARKS:"]